Workbook

Sheet Settings
B2: Basis year | C2: 2017
B3: Current Year | C3: 2022
B4: Current Month | C4: 12

Sheet Overview
B2: Marketing | D2: 2018 | E2: =D2+1 -> 2019 | F2: 2020 | G2: 2021 | H2: 2022 | I2: 2023 | J2: =I2+1 -> 2024 | K2: 2025 | L2: 2026 | M2: =L2+1 -> 2027 | N2: =M2+1 -> 2028 | P2: =+G2 -> 2021 | Q2: =+H2 -> 2022 | R2: =G2+1 -> 2022 | S2: Budget | T2: PY | V2: =+G2 -> 2021 | W2: =+H2 -> 2022 | X2: =+W2 -> 2022 | Y2: Budget | Z2: PY
B3: in TEUR | D3: PY | E3: PY | F3: PY | G3: PY | H3: FC | I3: B | J3: B | K3: B | L3: B | M3: B | N3: B | P3: PY YTD | Q3: B YTD | R3: A YTD | S3: Δ % | T3: Δ % | V3: PY | W3: B | X3: FC | Y3: Δ % | Z3: Δ %
B5: Channel
B7: =+masterfile!A2 -> Online
B8: Costs | D8: =+SUMIFS(details!$G:$G,details!$A:$A,Overview!$B7,details!$L:$L,Overview!D$2) -> 939 | E8: =+SUMIFS(details!$G:$G,details!$A:$A,Overview!$B7,details!$L:$L,Overview!E$2) -> 939 | F8: =+SUMIFS(details!$G:$G,details!$A:$A,Overview!$B7,details!$L:$L,Overview!F$2) -> 939 | G8: =+SUMIFS(details!$G:$G,details!$A:$A,Overview!$B7,details!$L:$L,Overview!G$2) -> 939 | H8: =+R8+W8-Q8 -> 939 | I8: =+SUMIFS(details!$F:$F,details!$A:$A,Overview!$B7,details!$L:$L,Overview!I$2) -> 939 | J8: =+SUMIFS(details!$F:$F,details!$A:$A,Overview!$B7,details!$L:$L,Overview!J$2) -> 939 | K8: =+SUMIFS(details!$F:$F,details!$A:$A,Overview!$B7,details!$L:$L,Overview!K$2) -> 939 | L8: =+SUMIFS(details!$F:$F,details!$A:$A,Overview!$B7,details!$L:$L,Overview!L$2) -> 939 | M8: =+SUMIFS(details!$F:$F,details!$A:$A,Overview!$B7,details!$L:$L,Overview!M$2) -> 939 | N8: =+SUMIFS(details!$F:$F,details!$A:$A,Overview!$B7,details!$L:$L,Overview!N$2) -> 939 | P8: =+SUMIFS(details!$G:$G,details!$A:$A,Overview!$B7,details!$L:$L,Overview!P$2,details!$K:$K,"<="&Settings!$C$4) -> 939 | Q8: =+SUMIFS(details!$F:$F,details!$A:$A,Overview!$B7,details!$L:$L,Overview!Q$2,details!$K:$K,"<="&Settings!$C$4) -> 939 | R8: =+SUMIFS(details!$G:$G,details!$A:$A,Overview!$B7,details!$L:$L,Overview!R$2,details!$K:$K,"<="&Settings!$C$4) -> 939 | S8: =IFERROR(R8/Q8-1,"n/a") -> 0% | T8: =IFERROR(R8/P8-1,"n/a") -> 0% | V8: =+G8 -> 939 | W8: =+SUMIFS(details!$F:$F,details!$A:$A,Overview!$B7,details!$L:$L,Overview!W$2) -> 939 | X8: =+H8 -> 939 | Y8: =IFERROR(X8/W8-1,"n/a") -> 0% | Z8: =IFERROR(X8/V8-1,"n/a") -> 0%
B9: Revenue | D9: =+SUMIFS(details!$I:$I,details!$A:$A,Overview!$B7,details!$L:$L,Overview!D$2) -> 8,315 | E9: =+SUMIFS(details!$I:$I,details!$A:$A,Overview!$B7,details!$L:$L,Overview!E$2) -> 8,315 | F9: =+SUMIFS(details!$I:$I,details!$A:$A,Overview!$B7,details!$L:$L,Overview!F$2) -> 8,315 | G9: =+SUMIFS(details!$I:$I,details!$A:$A,Overview!$B7,details!$L:$L,Overview!G$2) -> 8,315 | H9: =+R9+W9-Q9 -> 8,315 | I9: =+SUMIFS(details!$H:$H,details!$A:$A,Overview!$B7,details!$L:$L,Overview!I$2) -> 8,315 | J9: =+SUMIFS(details!$H:$H,details!$A:$A,Overview!$B7,details!$L:$L,Overview!J$2) -> 8,315 | K9: =+SUMIFS(details!$H:$H,details!$A:$A,Overview!$B7,details!$L:$L,Overview!K$2) -> 8,315 | L9: =+SUMIFS(details!$H:$H,details!$A:$A,Overview!$B7,details!$L:$L,Overview!L$2) -> 8,315 | M9: =+SUMIFS(details!$H:$H,details!$A:$A,Overview!$B7,details!$L:$L,Overview!M$2) -> 8,315 | N9: =+SUMIFS(details!$H:$H,details!$A:$A,Overview!$B7,details!$L:$L,Overview!N$2) -> 8,315 | P9: =+SUMIFS(details!$I:$I,details!$A:$A,Overview!$B7,details!$L:$L,Overview!P$2,details!$K:$K,"<="&Settings!$C$4) -> 8,315 | Q9: =+SUMIFS(details!$H:$H,details!$A:$A,Overview!$B7,details!$L:$L,Overview!Q$2,details!$K:$K,"<="&Settings!$C$4) -> 8,315 | R9: =+SUMIFS(details!$I:$I,details!$A:$A,Overview!$B7,details!$L:$L,Overview!R$2,details!$K:$K,"<="&Settings!$C$4) -> 8,315 | S9: 0% | T9: 0% | V9: =+G9 -> 8,315 | W9: =+SUMIFS(details!$H:$H,details!$A:$A,Overview!$B7,details!$L:$L,Overview!W$2) -> 8,315 | X9: =+H9 -> 8,315 | Y9: 0% | Z9: 0%
B10: Project count | D10: =+COUNTIFS(details!$A:$A,Overview!$B7,details!$L:$L,Overview!D$2) -> 33 | E10: =+COUNTIFS(details!$A:$A,Overview!$B7,details!$L:$L,Overview!E$2) -> 33 | F10: =+COUNTIFS(details!$A:$A,Overview!$B7,details!$L:$L,Overview!F$2) -> 33 | G10: =+COUNTIFS(details!$A:$A,Overview!$B7,details!$L:$L,Overview!G$2) -> 33 | H10: =+R10+W10-Q10 -> 33 | I10: =+COUNTIFS(details!$A:$A,Overview!$B7,details!$L:$L,Overview!I$2) -> 33 | J10: =+COUNTIFS(details!$A:$A,Overview!$B7,details!$L:$L,Overview!J$2) -> 33 | K10: =+COUNTIFS(details!$A:$A,Overview!$B7,details!$L:$L,Overview!K$2) -> 33 | L10: =+COUNTIFS(details!$A:$A,Overview!$B7,details!$L:$L,Overview!L$2) -> 33 | M10: =+COUNTIFS(details!$A:$A,Overview!$B7,details!$L:$L,Overview!M$2) -> 33 | N10: =+COUNTIFS(details!$A:$A,Overview!$B7,details!$L:$L,Overview!N$2) -> 33 | P10: =+COUNTIFS(details!$A:$A,Overview!$B7,details!$L:$L,Overview!G$2,details!$K:$K,"<="&Settings!$C$4) -> 33 | Q10: =+COUNTIFS(details!$A:$A,Overview!$B7,details!$L:$L,Overview!Q$2,details!$K:$K,"<="&Settings!$C$4) -> 33 | R10: =+COUNTIFS(details!$A:$A,Overview!$B7,details!$L:$L,Overview!I$2,details!$K:$K,"<="&Settings!$C$4) -> 33 | S10: 0% | T10: 0% | V10: 33 | W10: =+COUNTIFS(details!$A:$A,Overview!$B7,details!$L:$L,Overview!W$2) -> 33 | X10: 33 | Y10: 0% | Z10: 0%
B12: =+masterfile!A3 -> Print
B13: Costs | D13: =+SUMIFS(details!$G:$G,details!$A:$A,Overview!$B12,details!$L:$L,Overview!D$2) -> 268 | E13: =+SUMIFS(details!$G:$G,details!$A:$A,Overview!$B12,details!$L:$L,Overview!E$2) -> 268 | F13: =+SUMIFS(details!$G:$G,details!$A:$A,Overview!$B12,details!$L:$L,Overview!F$2) -> 268 | G13: =+SUMIFS(details!$G:$G,details!$A:$A,Overview!$B12,details!$L:$L,Overview!G$2) -> 268 | H13: =+R13+W13-Q13 -> 268 | I13: =+SUMIFS(details!$F:$F,details!$A:$A,Overview!$B12,details!$L:$L,Overview!I$2) -> 268 | J13: =+SUMIFS(details!$F:$F,details!$A:$A,Overview!$B12,details!$L:$L,Overview!J$2) -> 268 | K13: =+SUMIFS(details!$F:$F,details!$A:$A,Overview!$B12,details!$L:$L,Overview!K$2) -> 268 | L13: =+SUMIFS(details!$F:$F,details!$A:$A,Overview!$B12,details!$L:$L,Overview!L$2) -> 268 | M13: =+SUMIFS(details!$F:$F,details!$A:$A,Overview!$B12,details!$L:$L,Overview!M$2) -> 268 | N13: =+SUMIFS(details!$F:$F,details!$A:$A,Overview!$B12,details!$L:$L,Overview!N$2) -> 268 | P13: =+SUMIFS(details!$G:$G,details!$A:$A,Overview!$B12,details!$L:$L,Overview!P$2,details!$K:$K,"<="&Settings!$C$4) -> 268 | Q13: =+SUMIFS(details!$F:$F,details!$A:$A,Overview!$B12,details!$L:$L,Overview!Q$2,details!$K:$K,"<="&Settings!$C$4) -> 243 | R13: =+SUMIFS(details!$G:$G,details!$A:$A,Overview!$B12,details!$L:$L,Overview!R$2,details!$K:$K,"<="&Settings!$C$4) -> 268 | S13: =IFERROR(R13/Q13-1,"n/a") -> 10% | T13: =IFERROR(R13/P13-1,"n/a") -> 0% | V13: =+G13 -> 268 | W13: =+SUMIFS(details!$F:$F,details!$A:$A,Overview!$B12,details!$L:$L,Overview!W$2) -> 243 | X13: =+H13 -> 268 | Y13: =IFERROR(X13/W13-1,"n/a") -> 10% | Z13: =IFERROR(X13/V13-1,"n/a") -> 0%
B14: Revenue | D14: =+SUMIFS(details!$I:$I,details!$A:$A,Overview!$B12,details!$L:$L,Overview!D$2) -> 315 | E14: =+SUMIFS(details!$I:$I,details!$A:$A,Overview!$B12,details!$L:$L,Overview!E$2) -> 315 | F14: =+SUMIFS(details!$I:$I,details!$A:$A,Overview!$B12,details!$L:$L,Overview!F$2) -> 315 | G14: =+SUMIFS(details!$I:$I,details!$A:$A,Overview!$B12,details!$L:$L,Overview!G$2) -> 315 | H14: =+R14+W14-Q14 -> 320 | I14: =+SUMIFS(details!$H:$H,details!$A:$A,Overview!$B12,details!$L:$L,Overview!I$2) -> 315 | J14: =+SUMIFS(details!$H:$H,details!$A:$A,Overview!$B12,details!$L:$L,Overview!J$2) -> 315 | K14: =+SUMIFS(details!$H:$H,details!$A:$A,Overview!$B12,details!$L:$L,Overview!K$2) -> 315 | L14: =+SUMIFS(details!$H:$H,details!$A:$A,Overview!$B12,details!$L:$L,Overview!L$2) -> 315 | M14: =+SUMIFS(details!$H:$H,details!$A:$A,Overview!$B12,details!$L:$L,Overview!M$2) -> 315 | N14: =+SUMIFS(details!$H:$H,details!$A:$A,Overview!$B12,details!$L:$L,Overview!N$2) -> 315 | P14: =+SUMIFS(details!$I:$I,details!$A:$A,Overview!$B12,details!$L:$L,Overview!P$2,details!$K:$K,"<="&Settings!$C$4) -> 315 | Q14: =+SUMIFS(details!$H:$H,details!$A:$A,Overview!$B12,details!$L:$L,Overview!Q$2,details!$K:$K,"<="&Settings!$C$4) -> 315 | R14: =+SUMIFS(details!$I:$I,details!$A:$A,Overview!$B12,details!$L:$L,Overview!R$2,details!$K:$K,"<="&Settings!$C$4) -> 320 | S14: 2% | T14: 2% | V14: 315 | W14: =+SUMIFS(details!$H:$H,details!$A:$A,Overview!$B12,details!$L:$L,Overview!W$2) -> 315 | X14: 320 | Y14: 2% | Z14: 2%
B15: Project count | D15: =+COUNTIFS(details!$A:$A,Overview!$B12,details!$L:$L,Overview!D$2) -> 14 | E15: =+COUNTIFS(details!$A:$A,Overview!$B12,details!$L:$L,Overview!E$2) -> 14 | F15: =+COUNTIFS(details!$A:$A,Overview!$B12,details!$L:$L,Overview!F$2) -> 14 | G15: =+COUNTIFS(details!$A:$A,Overview!$B12,details!$L:$L,Overview!G$2) -> 14 | H15: =+R15+W15-Q15 -> 14 | I15: =+COUNTIFS(details!$A:$A,Overview!$B12,details!$L:$L,Overview!I$2) -> 14 | J15: =+COUNTIFS(details!$A:$A,Overview!$B12,details!$L:$L,Overview!J$2) -> 14 | K15: =+COUNTIFS(details!$A:$A,Overview!$B12,details!$L:$L,Overview!K$2) -> 14 | L15: =+COUNTIFS(details!$A:$A,Overview!$B12,details!$L:$L,Overview!L$2) -> 14 | M15: =+COUNTIFS(details!$A:$A,Overview!$B12,details!$L:$L,Overview!M$2) -> 14 | N15: =+COUNTIFS(details!$A:$A,Overview!$B12,details!$L:$L,Overview!N$2) -> 14 | P15: =+COUNTIFS(details!$A:$A,Overview!$B12,details!$L:$L,Overview!G$2,details!$K:$K,"<="&Settings!$C$4) -> 14 | Q15: =+COUNTIFS(details!$A:$A,Overview!$B12,details!$L:$L,Overview!Q$2,details!$K:$K,"<="&Settings!$C$4) -> 14 | R15: =+COUNTIFS(details!$A:$A,Overview!$B12,details!$L:$L,Overview!I$2,details!$K:$K,"<="&Settings!$C$4) -> 14 | S15: 0% | T15: 0% | V15: 14 | W15: =+COUNTIFS(details!$A:$A,Overview!$B12,details!$L:$L,Overview!W$2) -> 14 | X15: 14 | Y15: 0% | Z15: 0%
B17: =+masterfile!A4 -> In person
B18: Costs | D18: =+SUMIFS(details!$G:$G,details!$A:$A,Overview!$B17,details!$L:$L,Overview!D$2) -> 405 | E18: =+SUMIFS(details!$G:$G,details!$A:$A,Overview!$B17,details!$L:$L,Overview!E$2) -> 405 | F18: =+SUMIFS(details!$G:$G,details!$A:$A,Overview!$B17,details!$L:$L,Overview!F$2) -> 405 | G18: =+SUMIFS(details!$G:$G,details!$A:$A,Overview!$B17,details!$L:$L,Overview!G$2) -> 405 | H18: =+R18+W18-Q18 -> 405 | I18: =+SUMIFS(details!$F:$F,details!$A:$A,Overview!$B17,details!$L:$L,Overview!I$2) -> 405 | J18: =+SUMIFS(details!$F:$F,details!$A:$A,Overview!$B17,details!$L:$L,Overview!J$2) -> 405 | K18: =+SUMIFS(details!$F:$F,details!$A:$A,Overview!$B17,details!$L:$L,Overview!K$2) -> 405 | L18: =+SUMIFS(details!$F:$F,details!$A:$A,Overview!$B17,details!$L:$L,Overview!L$2) -> 405 | M18: =+SUMIFS(details!$F:$F,details!$A:$A,Overview!$B17,details!$L:$L,Overview!M$2) -> 405 | N18: =+SUMIFS(details!$F:$F,details!$A:$A,Overview!$B17,details!$L:$L,Overview!N$2) -> 405 | P18: =+SUMIFS(details!$G:$G,details!$A:$A,Overview!$B17,details!$L:$L,Overview!P$2,details!$K:$K,"<="&Settings!$C$4) -> 405 | Q18: =+SUMIFS(details!$F:$F,details!$A:$A,Overview!$B17,details!$L:$L,Overview!Q$2,details!$K:$K,"<="&Settings!$C$4) -> 405 | R18: =+SUMIFS(details!$G:$G,details!$A:$A,Overview!$B17,details!$L:$L,Overview!R$2,details!$K:$K,"<="&Settings!$C$4) -> 405 | S18: =IFERROR(R18/Q18-1,"n/a") -> 0% | T18: =IFERROR(R18/P18-1,"n/a") -> 0% | V18: =+G18 -> 405 | W18: =+SUMIFS(details!$F:$F,details!$A:$A,Overview!$B17,details!$L:$L,Overview!W$2) -> 405 | X18: =+H18 -> 405 | Y18: =IFERROR(X18/W18-1,"n/a") -> 0% | Z18: =IFERROR(X18/V18-1,"n/a") -> 0%
B19: Revenue | D19: =+SUMIFS(details!$I:$I,details!$A:$A,Overview!$B17,details!$L:$L,Overview!D$2) -> 425 | E19: =+SUMIFS(details!$I:$I,details!$A:$A,Overview!$B17,details!$L:$L,Overview!E$2) -> 425 | F19: =+SUMIFS(details!$I:$I,details!$A:$A,Overview!$B17,details!$L:$L,Overview!F$2) -> 425 | G19: =+SUMIFS(details!$I:$I,details!$A:$A,Overview!$B17,details!$L:$L,Overview!G$2) -> 425 | H19: =+R19+W19-Q19 -> 425 | I19: =+SUMIFS(details!$H:$H,details!$A:$A,Overview!$B17,details!$L:$L,Overview!I$2) -> 425 | J19: =+SUMIFS(details!$H:$H,details!$A:$A,Overview!$B17,details!$L:$L,Overview!J$2) -> 425 | K19: =+SUMIFS(details!$H:$H,details!$A:$A,Overview!$B17,details!$L:$L,Overview!K$2) -> 425 | L19: =+SUMIFS(details!$H:$H,details!$A:$A,Overview!$B17,details!$L:$L,Overview!L$2) -> 425 | M19: =+SUMIFS(details!$H:$H,details!$A:$A,Overview!$B17,details!$L:$L,Overview!M$2) -> 425 | N19: =+SUMIFS(details!$H:$H,details!$A:$A,Overview!$B17,details!$L:$L,Overview!N$2) -> 425 | P19: =+SUMIFS(details!$I:$I,details!$A:$A,Overview!$B17,details!$L:$L,Overview!P$2,details!$K:$K,"<="&Settings!$C$4) -> 425 | Q19: =+SUMIFS(details!$H:$H,details!$A:$A,Overview!$B17,details!$L:$L,Overview!Q$2,details!$K:$K,"<="&Settings!$C$4) -> 425 | R19: =+SUMIFS(details!$I:$I,details!$A:$A,Overview!$B17,details!$L:$L,Overview!R$2,details!$K:$K,"<="&Settings!$C$4) -> 425 | S19: 0% | T19: 0% | V19: 425 | W19: =+SUMIFS(details!$H:$H,details!$A:$A,Overview!$B17,details!$L:$L,Overview!W$2) -> 425 | X19: 425 | Y19: 0% | Z19: 0%
B20: Project count | D20: =+COUNTIFS(details!$A:$A,Overview!$B17,details!$L:$L,Overview!D$2) -> 9 | E20: =+COUNTIFS(details!$A:$A,Overview!$B17,details!$L:$L,Overview!E$2) -> 9 | F20: =+COUNTIFS(details!$A:$A,Overview!$B17,details!$L:$L,Overview!F$2) -> 9 | G20: =+COUNTIFS(details!$A:$A,Overview!$B17,details!$L:$L,Overview!G$2) -> 9 | H20: =+R20+W20-Q20 -> 9 | I20: =+COUNTIFS(details!$A:$A,Overview!$B17,details!$L:$L,Overview!I$2) -> 9 | J20: =+COUNTIFS(details!$A:$A,Overview!$B17,details!$L:$L,Overview!J$2) -> 9 | K20: =+COUNTIFS(details!$A:$A,Overview!$B17,details!$L:$L,Overview!K$2) -> 9 | L20: =+COUNTIFS(details!$A:$A,Overview!$B17,details!$L:$L,Overview!L$2) -> 9 | M20: =+COUNTIFS(details!$A:$A,Overview!$B17,details!$L:$L,Overview!M$2) -> 9 | N20: =+COUNTIFS(details!$A:$A,Overview!$B17,details!$L:$L,Overview!N$2) -> 9 | P20: =+COUNTIFS(details!$A:$A,Overview!$B17,details!$L:$L,Overview!G$2,details!$K:$K,"<="&Settings!$C$4) -> 9 | Q20: =+COUNTIFS(details!$A:$A,Overview!$B17,details!$L:$L,Overview!Q$2,details!$K:$K,"<="&Settings!$C$4) -> 9 | R20: =+COUNTIFS(details!$A:$A,Overview!$B17,details!$L:$L,Overview!I$2,details!$K:$K,"<="&Settings!$C$4) -> 9 | S20: 0% | T20: 0% | V20: 9 | W20: =+COUNTIFS(details!$A:$A,Overview!$B17,details!$L:$L,Overview!W$2) -> 9 | X20: 9 | Y20: 0% | Z20: 0%
B22: =+masterfile!A5 -> Merchandise
B23: Costs | D23: =+SUMIFS(details!$G:$G,details!$A:$A,Overview!$B22,details!$L:$L,Overview!D$2) -> 5 | E23: =+SUMIFS(details!$G:$G,details!$A:$A,Overview!$B22,details!$L:$L,Overview!E$2) -> 5 | F23: =+SUMIFS(details!$G:$G,details!$A:$A,Overview!$B22,details!$L:$L,Overview!F$2) -> 5 | G23: =+SUMIFS(details!$G:$G,details!$A:$A,Overview!$B22,details!$L:$L,Overview!G$2) -> 5 | H23: =+R23+W23-Q23 -> 5 | I23: =+SUMIFS(details!$F:$F,details!$A:$A,Overview!$B22,details!$L:$L,Overview!I$2) -> 5 | J23: =+SUMIFS(details!$F:$F,details!$A:$A,Overview!$B22,details!$L:$L,Overview!J$2) -> 5 | K23: =+SUMIFS(details!$F:$F,details!$A:$A,Overview!$B22,details!$L:$L,Overview!K$2) -> 5 | L23: =+SUMIFS(details!$F:$F,details!$A:$A,Overview!$B22,details!$L:$L,Overview!L$2) -> 5 | M23: =+SUMIFS(details!$F:$F,details!$A:$A,Overview!$B22,details!$L:$L,Overview!M$2) -> 5 | N23: =+SUMIFS(details!$F:$F,details!$A:$A,Overview!$B22,details!$L:$L,Overview!N$2) -> 5 | P23: =+SUMIFS(details!$G:$G,details!$A:$A,Overview!$B22,details!$L:$L,Overview!P$2,details!$K:$K,"<="&Settings!$C$4) -> 5 | Q23: =+SUMIFS(details!$F:$F,details!$A:$A,Overview!$B22,details!$L:$L,Overview!Q$2,details!$K:$K,"<="&Settings!$C$4) -> 5 | R23: =+SUMIFS(details!$G:$G,details!$A:$A,Overview!$B22,details!$L:$L,Overview!R$2,details!$K:$K,"<="&Settings!$C$4) -> 5 | S23: =IFERROR(R23/Q23-1,"n/a") -> 0% | T23: =IFERROR(R23/P23-1,"n/a") -> 0% | V23: =+G23 -> 5 | W23: =+SUMIFS(details!$F:$F,details!$A:$A,Overview!$B22,details!$L:$L,Overview!W$2) -> 5 | X23: =+H23 -> 5 | Y23: =IFERROR(X23/W23-1,"n/a") -> 0% | Z23: =IFERROR(X23/V23-1,"n/a") -> 0%
B24: Revenue | D24: =+SUMIFS(details!$I:$I,details!$A:$A,Overview!$B22,details!$L:$L,Overview!D$2) -> 0 | E24: =+SUMIFS(details!$I:$I,details!$A:$A,Overview!$B22,details!$L:$L,Overview!E$2) -> 0 | F24: =+SUMIFS(details!$I:$I,details!$A:$A,Overview!$B22,details!$L:$L,Overview!F$2) -> 0 | G24: =+SUMIFS(details!$I:$I,details!$A:$A,Overview!$B22,details!$L:$L,Overview!G$2) -> 0 | H24: =+R24+W24-Q24 -> 0 | I24: =+SUMIFS(details!$H:$H,details!$A:$A,Overview!$B22,details!$L:$L,Overview!I$2) -> 0 | J24: =+SUMIFS(details!$H:$H,details!$A:$A,Overview!$B22,details!$L:$L,Overview!J$2) -> 0 | K24: =+SUMIFS(details!$H:$H,details!$A:$A,Overview!$B22,details!$L:$L,Overview!K$2) -> 0 | L24: =+SUMIFS(details!$H:$H,details!$A:$A,Overview!$B22,details!$L:$L,Overview!L$2) -> 0 | M24: =+SUMIFS(details!$H:$H,details!$A:$A,Overview!$B22,details!$L:$L,Overview!M$2) -> 0 | N24: =+SUMIFS(details!$H:$H,details!$A:$A,Overview!$B22,details!$L:$L,Overview!N$2) -> 0 | P24: =+SUMIFS(details!$I:$I,details!$A:$A,Overview!$B22,details!$L:$L,Overview!P$2,details!$K:$K,"<="&Settings!$C$4) -> 0 | Q24: =+SUMIFS(details!$H:$H,details!$A:$A,Overview!$B22,details!$L:$L,Overview!Q$2,details!$K:$K,"<="&Settings!$C$4) -> 0 | R24: =+SUMIFS(details!$I:$I,details!$A:$A,Overview!$B22,details!$L:$L,Overview!R$2,details!$K:$K,"<="&Settings!$C$4) -> 0 | S24: n/a | T24: n/a | V24: 0 | W24: =+SUMIFS(details!$H:$H,details!$A:$A,Overview!$B22,details!$L:$L,Overview!W$2) -> 0 | X24: 0 | Y24: n/a | Z24: n/a
B25: Project count | D25: =+COUNTIFS(details!$A:$A,Overview!$B22,details!$L:$L,Overview!D$2) -> 5 | E25: =+COUNTIFS(details!$A:$A,Overview!$B22,details!$L:$L,Overview!E$2) -> 5 | F25: =+COUNTIFS(details!$A:$A,Overview!$B22,details!$L:$L,Overview!F$2) -> 5 | G25: =+COUNTIFS(details!$A:$A,Overview!$B22,details!$L:$L,Overview!G$2) -> 5 | H25: =+R25+W25-Q25 -> 5 | I25: =+COUNTIFS(details!$A:$A,Overview!$B22,details!$L:$L,Overview!I$2) -> 5 | J25: =+COUNTIFS(details!$A:$A,Overview!$B22,details!$L:$L,Overview!J$2) -> 5 | K25: =+COUNTIFS(details!$A:$A,Overview!$B22,details!$L:$L,Overview!K$2) -> 5 | L25: =+COUNTIFS(details!$A:$A,Overview!$B22,details!$L:$L,Overview!L$2) -> 5 | M25: =+COUNTIFS(details!$A:$A,Overview!$B22,details!$L:$L,Overview!M$2) -> 5 | N25: =+COUNTIFS(details!$A:$A,Overview!$B22,details!$L:$L,Overview!N$2) -> 5 | P25: =+COUNTIFS(details!$A:$A,Overview!$B22,details!$L:$L,Overview!G$2,details!$K:$K,"<="&Settings!$C$4) -> 5 | Q25: =+COUNTIFS(details!$A:$A,Overview!$B22,details!$L:$L,Overview!Q$2,details!$K:$K,"<="&Settings!$C$4) -> 5 | R25: =+COUNTIFS(details!$A:$A,Overview!$B22,details!$L:$L,Overview!I$2,details!$K:$K,"<="&Settings!$C$4) -> 5 | S25: 0% | T25: 0% | V25: 5 | W25: =+COUNTIFS(details!$A:$A,Overview!$B22,details!$L:$L,Overview!W$2) -> 5 | X25: 5 | Y25: 0% | Z25: 0%
B27: Total Channels
B28: Costs | D28: =+D8+D13+D18+D23 -> 1,617 | E28: =+E8+E13+E18+E23 -> 1,617 | F28: 1,617 | G28: 1,617 | H28: 1,617 | I28: 1,617 | J28: 1,617 | K28: 1,617 | L28: 1,617 | M28: =+M8+M13+M18+M23 -> 1,617 | N28: 1,617 | P28: =+P8+P13+P18+P23 -> 1,617 | Q28: 1,592 | R28: 1,617 | S28: =IFERROR(R28/Q28-1,"n/a") -> 2% | T28: =IFERROR(R28/P28-1,"n/a") -> 0% | V28: =+V8+V13+V18+V23 -> 1,617 | W28: 1,592 | X28: =+X8+X13+X18+X23 -> 1,617 | Y28: =IFERROR(X28/W28-1,"n/a") -> 2% | Z28: =IFERROR(X28/V28-1,"n/a") -> 0%
B29: Revenue | D29: =+D9+D14+D19+D24 -> 9,055 | E29: =+E9+E14+E19+E24 -> 9,055 | F29: 9,055 | G29: 9,055 | H29: 9,060 | I29: 9,055 | J29: 9,055 | K29: 9,055 | L29: 9,055 | M29: =+M9+M14+M19+M24 -> 9,055 | N29: 9,055 | P29: =+P9+P14+P19+P24 -> 9,055 | Q29: 9,055 | R29: 9,060 | S29: 0% | T29: 0% | V29: =+V9+V14+V19+V24 -> 9,055 | W29: 9,055 | X29: =+X9+X14+X19+X24 -> 9,060 | Y29: 0% | Z29: 0%
B30: Project count | D30: =+D10+D15+D20+D25 -> 61 | E30: =+E10+E15+E20+E25 -> 61 | F30: 61 | G30: 61 | H30: 61 | I30: 61 | J30: 61 | K30: 61 | L30: 61 | M30: =+M10+M15+M20+M25 -> 61 | N30: 61 | P30: =+P10+P15+P20+P25 -> 61 | Q30: 61 | R30: 61 | S30: 0% | T30: 0% | V30: =+V10+V15+V20+V25 -> 61 | W30: 61 | X30: =+X10+X15+X20+X25 -> 61 | Y30: 0% | Z30: 0%
B31: ROI | D31: =+(D29-D28)/D28 -> 460% | E31: =+(E29-E28)/E28 -> 460% | F31: 460% | G31: 460% | H31: 460% | I31: 460% | J31: 460% | K31: 460% | L31: 460% | M31: =+(M29-M28)/M28 -> 460% | N31: 460% | P31: 460% | Q31: 469% | R31: 460% | V31: =+(V29-V28)/V28 -> 460% | W31: 469% | X31: 460%
B33: Media Type
B35: =+masterfile!B2 -> Social media
B36: Costs | D36: =+SUMIFS(details!$G:$G,details!$B:$B,Overview!$B35,details!$L:$L,Overview!D$2) -> 67 | E36: =+SUMIFS(details!$G:$G,details!$B:$B,Overview!$B35,details!$L:$L,Overview!E$2) -> 67 | F36: =+SUMIFS(details!$G:$G,details!$B:$B,Overview!$B35,details!$L:$L,Overview!F$2) -> 67 | G36: =+SUMIFS(details!$G:$G,details!$B:$B,Overview!$B35,details!$L:$L,Overview!G$2) -> 67 | H36: =+R36+W36-Q36 -> 67 | I36: =+SUMIFS(details!$F:$F,details!$B:$B,Overview!$B35,details!$L:$L,Overview!I$2) -> 67 | J36: =+SUMIFS(details!$F:$F,details!$B:$B,Overview!$B35,details!$L:$L,Overview!J$2) -> 67 | K36: =+SUMIFS(details!$F:$F,details!$B:$B,Overview!$B35,details!$L:$L,Overview!K$2) -> 67 | L36: =+SUMIFS(details!$F:$F,details!$B:$B,Overview!$B35,details!$L:$L,Overview!L$2) -> 67 | M36: =+SUMIFS(details!$F:$F,details!$B:$B,Overview!$B35,details!$L:$L,Overview!M$2) -> 67 | N36: =+SUMIFS(details!$F:$F,details!$B:$B,Overview!$B35,details!$L:$L,Overview!N$2) -> 67 | P36: =+SUMIFS(details!$G:$G,details!$B:$B,Overview!$B35,details!$L:$L,Overview!P$2,details!$K:$K,"<="&Settings!$C$4) -> 67 | Q36: =+SUMIFS(details!$F:$F,details!$B:$B,Overview!$B35,details!$L:$L,Overview!Q$2,details!$K:$K,"<="&Settings!$C$4) -> 67 | R36: =+SUMIFS(details!$G:$G,details!$B:$B,Overview!$B35,details!$L:$L,Overview!R$2,details!$K:$K,"<="&Settings!$C$4) -> 67 | S36: =IFERROR(R36/Q36-1,"n/a") -> 0% | T36: =IFERROR(R36/P36-1,"n/a") -> 0% | V36: =+G36 -> 67 | W36: =+SUMIFS(details!$F:$F,details!$B:$B,Overview!$B35,details!$L:$L,Overview!W$2) -> 67 | X36: =+H36 -> 67 | Y36: =IFERROR(X36/W36-1,"n/a") -> 0% | Z36: =IFERROR(X36/V36-1,"n/a") -> 0%
B37: Revenue | D37: =+SUMIFS(details!$I:$I,details!$B:$B,Overview!$B35,details!$L:$L,Overview!D$2) -> 15 | E37: =+SUMIFS(details!$I:$I,details!$B:$B,Overview!$B35,details!$L:$L,Overview!E$2) -> 15 | F37: =+SUMIFS(details!$I:$I,details!$B:$B,Overview!$B35,details!$L:$L,Overview!F$2) -> 15 | G37: =+SUMIFS(details!$I:$I,details!$B:$B,Overview!$B35,details!$L:$L,Overview!G$2) -> 15 | H37: =+R37+W37-Q37 -> 15 | I37: =+SUMIFS(details!$H:$H,details!$B:$B,Overview!$B35,details!$L:$L,Overview!I$2) -> 15 | J37: =+SUMIFS(details!$H:$H,details!$B:$B,Overview!$B35,details!$L:$L,Overview!J$2) -> 15 | K37: =+SUMIFS(details!$H:$H,details!$B:$B,Overview!$B35,details!$L:$L,Overview!K$2) -> 15 | L37: =+SUMIFS(details!$H:$H,details!$B:$B,Overview!$B35,details!$L:$L,Overview!L$2) -> 15 | M37: =+SUMIFS(details!$H:$H,details!$B:$B,Overview!$B35,details!$L:$L,Overview!M$2) -> 15 | N37: =+SUMIFS(details!$H:$H,details!$B:$B,Overview!$B35,details!$L:$L,Overview!N$2) -> 15 | P37: =+SUMIFS(details!$I:$I,details!$B:$B,Overview!$B35,details!$L:$L,Overview!P$2,details!$K:$K,"<="&Settings!$C$4) -> 15 | Q37: =+SUMIFS(details!$H:$H,details!$B:$B,Overview!$B35,details!$L:$L,Overview!Q$2,details!$K:$K,"<="&Settings!$C$4) -> 15 | R37: =+SUMIFS(details!$I:$I,details!$B:$B,Overview!$B35,details!$L:$L,Overview!R$2,details!$K:$K,"<="&Settings!$C$4) -> 15 | S37: 0% | T37: 0% | V37: 15 | W37: =+SUMIFS(details!$H:$H,details!$B:$B,Overview!$B35,details!$L:$L,Overview!W$2) -> 15 | X37: 15 | Y37: 0% | Z37: 0%
B38: Project count | D38: =+COUNTIFS(details!$B:$B,Overview!$B35,details!$L:$L,Overview!D$2) -> 5 | E38: =+COUNTIFS(details!$B:$B,Overview!$B35,details!$L:$L,Overview!E$2) -> 5 | F38: =+COUNTIFS(details!$B:$B,Overview!$B35,details!$L:$L,Overview!F$2) -> 5 | G38: =+COUNTIFS(details!$B:$B,Overview!$B35,details!$L:$L,Overview!G$2) -> 5 | H38: =+R38+W38-Q38 -> 5 | I38: =+COUNTIFS(details!$B:$B,Overview!$B35,details!$L:$L,Overview!I$2) -> 5 | J38: =+COUNTIFS(details!$B:$B,Overview!$B35,details!$L:$L,Overview!J$2) -> 5 | K38: =+COUNTIFS(details!$B:$B,Overview!$B35,details!$L:$L,Overview!K$2) -> 5 | L38: =+COUNTIFS(details!$B:$B,Overview!$B35,details!$L:$L,Overview!L$2) -> 5 | M38: =+COUNTIFS(details!$B:$B,Overview!$B35,details!$L:$L,Overview!M$2) -> 5 | N38: =+COUNTIFS(details!$B:$B,Overview!$B35,details!$L:$L,Overview!N$2) -> 5 | P38: =+COUNTIFS(details!$B:$B,Overview!$B35,details!$L:$L,Overview!G$2,details!$K:$K,"<="&Settings!$C$4) -> 5 | Q38: =+COUNTIFS(details!$B:$B,Overview!$B35,details!$L:$L,Overview!Q$2,details!$K:$K,"<="&Settings!$C$4) -> 5 | R38: =+COUNTIFS(details!$B:$B,Overview!$B35,details!$L:$L,Overview!I$2,details!$K:$K,"<="&Settings!$C$4) -> 5 | S38: 0% | T38: 0% | V38: 5 | W38: =+COUNTIFS(details!$B:$B,Overview!$B35,details!$L:$L,Overview!W$2) -> 5 | X38: 5 | Y38: 0% | Z38: 0%
B40: =+masterfile!B3 -> Website
B41: Costs | D41: =+SUMIFS(details!$G:$G,details!$B:$B,Overview!$B40,details!$L:$L,Overview!D$2) -> 212 | E41: =+SUMIFS(details!$G:$G,details!$B:$B,Overview!$B40,details!$L:$L,Overview!E$2) -> 212 | F41: =+SUMIFS(details!$G:$G,details!$B:$B,Overview!$B40,details!$L:$L,Overview!F$2) -> 212 | G41: =+SUMIFS(details!$G:$G,details!$B:$B,Overview!$B40,details!$L:$L,Overview!G$2) -> 212 | H41: =+R41+W41-Q41 -> 212 | I41: =+SUMIFS(details!$F:$F,details!$B:$B,Overview!$B40,details!$L:$L,Overview!I$2) -> 212 | J41: =+SUMIFS(details!$F:$F,details!$B:$B,Overview!$B40,details!$L:$L,Overview!J$2) -> 212 | K41: =+SUMIFS(details!$F:$F,details!$B:$B,Overview!$B40,details!$L:$L,Overview!K$2) -> 212 | L41: =+SUMIFS(details!$F:$F,details!$B:$B,Overview!$B40,details!$L:$L,Overview!L$2) -> 212 | M41: =+SUMIFS(details!$F:$F,details!$B:$B,Overview!$B40,details!$L:$L,Overview!M$2) -> 212 | N41: =+SUMIFS(details!$F:$F,details!$B:$B,Overview!$B40,details!$L:$L,Overview!N$2) -> 212 | P41: =+SUMIFS(details!$G:$G,details!$B:$B,Overview!$B40,details!$L:$L,Overview!P$2,details!$K:$K,"<="&Settings!$C$4) -> 212 | Q41: =+SUMIFS(details!$F:$F,details!$B:$B,Overview!$B40,details!$L:$L,Overview!Q$2,details!$K:$K,"<="&Settings!$C$4) -> 212 | R41: =+SUMIFS(details!$G:$G,details!$B:$B,Overview!$B40,details!$L:$L,Overview!R$2,details!$K:$K,"<="&Settings!$C$4) -> 212 | S41: =IFERROR(R41/Q41-1,"n/a") -> 0% | T41: =IFERROR(R41/P41-1,"n/a") -> 0% | V41: =+G41 -> 212 | W41: =+SUMIFS(details!$F:$F,details!$B:$B,Overview!$B40,details!$L:$L,Overview!W$2) -> 212 | X41: =+H41 -> 212 | Y41: =IFERROR(X41/W41-1,"n/a") -> 0% | Z41: =IFERROR(X41/V41-1,"n/a") -> 0%
B42: Revenue | D42: =+SUMIFS(details!$I:$I,details!$B:$B,Overview!$B40,details!$L:$L,Overview!D$2) -> 6,060 | E42: =+SUMIFS(details!$I:$I,details!$B:$B,Overview!$B40,details!$L:$L,Overview!E$2) -> 6,060 | F42: =+SUMIFS(details!$I:$I,details!$B:$B,Overview!$B40,details!$L:$L,Overview!F$2) -> 6,060 | G42: =+SUMIFS(details!$I:$I,details!$B:$B,Overview!$B40,details!$L:$L,Overview!G$2) -> 6,060 | H42: =+R42+W42-Q42 -> 6,060 | I42: =+SUMIFS(details!$H:$H,details!$B:$B,Overview!$B40,details!$L:$L,Overview!I$2) -> 6,060 | J42: =+SUMIFS(details!$H:$H,details!$B:$B,Overview!$B40,details!$L:$L,Overview!J$2) -> 6,060 | K42: =+SUMIFS(details!$H:$H,details!$B:$B,Overview!$B40,details!$L:$L,Overview!K$2) -> 6,060 | L42: =+SUMIFS(details!$H:$H,details!$B:$B,Overview!$B40,details!$L:$L,Overview!L$2) -> 6,060 | M42: =+SUMIFS(details!$H:$H,details!$B:$B,Overview!$B40,details!$L:$L,Overview!M$2) -> 6,060 | N42: =+SUMIFS(details!$H:$H,details!$B:$B,Overview!$B40,details!$L:$L,Overview!N$2) -> 6,060 | P42: =+SUMIFS(details!$I:$I,details!$B:$B,Overview!$B40,details!$L:$L,Overview!P$2,details!$K:$K,"<="&Settings!$C$4) -> 6,060 | Q42: =+SUMIFS(details!$H:$H,details!$B:$B,Overview!$B40,details!$L:$L,Overview!Q$2,details!$K:$K,"<="&Settings!$C$4) -> 6,060 | R42: =+SUMIFS(details!$I:$I,details!$B:$B,Overview!$B40,details!$L:$L,Overview!R$2,details!$K:$K,"<="&Settings!$C$4) -> 6,060 | S42: 0% | T42: 0% | V42: 6,060 | W42: =+SUMIFS(details!$H:$H,details!$B:$B,Overview!$B40,details!$L:$L,Overview!W$2) -> 6,060 | X42: 6,060 | Y42: 0% | Z42: 0%
B43: Project count | D43: =+COUNTIFS(details!$B:$B,Overview!$B40,details!$L:$L,Overview!D$2) -> 5 | E43: =+COUNTIFS(details!$B:$B,Overview!$B40,details!$L:$L,Overview!E$2) -> 5 | F43: =+COUNTIFS(details!$B:$B,Overview!$B40,details!$L:$L,Overview!F$2) -> 5 | G43: =+COUNTIFS(details!$B:$B,Overview!$B40,details!$L:$L,Overview!G$2) -> 5 | H43: =+R43+W43-Q43 -> 5 | I43: =+COUNTIFS(details!$B:$B,Overview!$B40,details!$L:$L,Overview!I$2) -> 5 | J43: =+COUNTIFS(details!$B:$B,Overview!$B40,details!$L:$L,Overview!J$2) -> 5 | K43: =+COUNTIFS(details!$B:$B,Overview!$B40,details!$L:$L,Overview!K$2) -> 5 | L43: =+COUNTIFS(details!$B:$B,Overview!$B40,details!$L:$L,Overview!L$2) -> 5 | M43: =+COUNTIFS(details!$B:$B,Overview!$B40,details!$L:$L,Overview!M$2) -> 5 | N43: =+COUNTIFS(details!$B:$B,Overview!$B40,details!$L:$L,Overview!N$2) -> 5 | P43: =+COUNTIFS(details!$B:$B,Overview!$B40,details!$L:$L,Overview!G$2,details!$K:$K,"<="&Settings!$C$4) -> 5 | Q43: =+COUNTIFS(details!$B:$B,Overview!$B40,details!$L:$L,Overview!Q$2,details!$K:$K,"<="&Settings!$C$4) -> 5 | R43: =+COUNTIFS(details!$B:$B,Overview!$B40,details!$L:$L,Overview!I$2,details!$K:$K,"<="&Settings!$C$4) -> 5 | S43: 0% | T43: 0% | V43: 5 | W43: =+COUNTIFS(details!$B:$B,Overview!$B40,details!$L:$L,Overview!W$2) -> 5 | X43: 5 | Y43: 0% | Z43: 0%
B45: =+masterfile!B4 -> Search engine
B46: Costs | D46: =+SUMIFS(details!$G:$G,details!$B:$B,Overview!$B45,details!$L:$L,Overview!D$2) -> 80 | E46: =+SUMIFS(details!$G:$G,details!$B:$B,Overview!$B45,details!$L:$L,Overview!E$2) -> 80 | F46: =+SUMIFS(details!$G:$G,details!$B:$B,Overview!$B45,details!$L:$L,Overview!F$2) -> 80 | G46: =+SUMIFS(details!$G:$G,details!$B:$B,Overview!$B45,details!$L:$L,Overview!G$2) -> 80 | H46: =+R46+W46-Q46 -> 80 | I46: =+SUMIFS(details!$F:$F,details!$B:$B,Overview!$B45,details!$L:$L,Overview!I$2) -> 80 | J46: =+SUMIFS(details!$F:$F,details!$B:$B,Overview!$B45,details!$L:$L,Overview!J$2) -> 80 | K46: =+SUMIFS(details!$F:$F,details!$B:$B,Overview!$B45,details!$L:$L,Overview!K$2) -> 80 | L46: =+SUMIFS(details!$F:$F,details!$B:$B,Overview!$B45,details!$L:$L,Overview!L$2) -> 80 | M46: =+SUMIFS(details!$F:$F,details!$B:$B,Overview!$B45,details!$L:$L,Overview!M$2) -> 80 | N46: =+SUMIFS(details!$F:$F,details!$B:$B,Overview!$B45,details!$L:$L,Overview!N$2) -> 80 | P46: =+SUMIFS(details!$G:$G,details!$B:$B,Overview!$B45,details!$L:$L,Overview!P$2,details!$K:$K,"<="&Settings!$C$4) -> 80 | Q46: =+SUMIFS(details!$F:$F,details!$B:$B,Overview!$B45,details!$L:$L,Overview!Q$2,details!$K:$K,"<="&Settings!$C$4) -> 80 | R46: =+SUMIFS(details!$G:$G,details!$B:$B,Overview!$B45,details!$L:$L,Overview!R$2,details!$K:$K,"<="&Settings!$C$4) -> 80 | S46: =IFERROR(R46/Q46-1,"n/a") -> 0% | T46: =IFERROR(R46/P46-1,"n/a") -> 0% | V46: =+G46 -> 80 | W46: =+SUMIFS(details!$F:$F,details!$B:$B,Overview!$B45,details!$L:$L,Overview!W$2) -> 80 | X46: =+H46 -> 80 | Y46: =IFERROR(X46/W46-1,"n/a") -> 0% | Z46: =IFERROR(X46/V46-1,"n/a") -> 0%
B47: Revenue | D47: =+SUMIFS(details!$I:$I,details!$B:$B,Overview!$B45,details!$L:$L,Overview!D$2) -> 1,255 | E47: =+SUMIFS(details!$I:$I,details!$B:$B,Overview!$B45,details!$L:$L,Overview!E$2) -> 1,255 | F47: =+SUMIFS(details!$I:$I,details!$B:$B,Overview!$B45,details!$L:$L,Overview!F$2) -> 1,255 | G47: =+SUMIFS(details!$I:$I,details!$B:$B,Overview!$B45,details!$L:$L,Overview!G$2) -> 1,255 | H47: =+R47+W47-Q47 -> 1,255 | I47: =+SUMIFS(details!$H:$H,details!$B:$B,Overview!$B45,details!$L:$L,Overview!I$2) -> 1,255 | J47: =+SUMIFS(details!$H:$H,details!$B:$B,Overview!$B45,details!$L:$L,Overview!J$2) -> 1,255 | K47: =+SUMIFS(details!$H:$H,details!$B:$B,Overview!$B45,details!$L:$L,Overview!K$2) -> 1,255 | L47: =+SUMIFS(details!$H:$H,details!$B:$B,Overview!$B45,details!$L:$L,Overview!L$2) -> 1,255 | M47: =+SUMIFS(details!$H:$H,details!$B:$B,Overview!$B45,details!$L:$L,Overview!M$2) -> 1,255 | N47: =+SUMIFS(details!$H:$H,details!$B:$B,Overview!$B45,details!$L:$L,Overview!N$2) -> 1,255 | P47: =+SUMIFS(details!$I:$I,details!$B:$B,Overview!$B45,details!$L:$L,Overview!P$2,details!$K:$K,"<="&Settings!$C$4) -> 1,255 | Q47: =+SUMIFS(details!$H:$H,details!$B:$B,Overview!$B45,details!$L:$L,Overview!Q$2,details!$K:$K,"<="&Settings!$C$4) -> 1,255 | R47: =+SUMIFS(details!$I:$I,details!$B:$B,Overview!$B45,details!$L:$L,Overview!R$2,details!$K:$K,"<="&Settings!$C$4) -> 1,255 | S47: 0% | T47: 0% | V47: 1,255 | W47: =+SUMIFS(details!$H:$H,details!$B:$B,Overview!$B45,details!$L:$L,Overview!W$2) -> 1,255 | X47: 1,255 | Y47: 0% | Z47: 0%
B48: Project count | D48: =+COUNTIFS(details!$B:$B,Overview!$B45,details!$L:$L,Overview!D$2) -> 3 | E48: =+COUNTIFS(details!$B:$B,Overview!$B45,details!$L:$L,Overview!E$2) -> 3 | F48: =+COUNTIFS(details!$B:$B,Overview!$B45,details!$L:$L,Overview!F$2) -> 3 | G48: =+COUNTIFS(details!$B:$B,Overview!$B45,details!$L:$L,Overview!G$2) -> 3 | H48: =+R48+W48-Q48 -> 3 | I48: =+COUNTIFS(details!$B:$B,Overview!$B45,details!$L:$L,Overview!I$2) -> 3 | J48: =+COUNTIFS(details!$B:$B,Overview!$B45,details!$L:$L,Overview!J$2) -> 3 | K48: =+COUNTIFS(details!$B:$B,Overview!$B45,details!$L:$L,Overview!K$2) -> 3 | L48: =+COUNTIFS(details!$B:$B,Overview!$B45,details!$L:$L,Overview!L$2) -> 3 | M48: =+COUNTIFS(details!$B:$B,Overview!$B45,details!$L:$L,Overview!M$2) -> 3 | N48: =+COUNTIFS(details!$B:$B,Overview!$B45,details!$L:$L,Overview!N$2) -> 3 | P48: =+COUNTIFS(details!$B:$B,Overview!$B45,details!$L:$L,Overview!G$2,details!$K:$K,"<="&Settings!$C$4) -> 3 | Q48: =+COUNTIFS(details!$B:$B,Overview!$B45,details!$L:$L,Overview!Q$2,details!$K:$K,"<="&Settings!$C$4) -> 3 | R48: =+COUNTIFS(details!$B:$B,Overview!$B45,details!$L:$L,Overview!I$2,details!$K:$K,"<="&Settings!$C$4) -> 3 | S48: 0% | T48: 0% | V48: 3 | W48: =+COUNTIFS(details!$B:$B,Overview!$B45,details!$L:$L,Overview!W$2) -> 3 | X48: 3 | Y48: 0% | Z48: 0%
B50: =+masterfile!B5 -> Article
B51: Costs | D51: =+SUMIFS(details!$G:$G,details!$B:$B,Overview!$B50,details!$L:$L,Overview!D$2) -> 265 | E51: =+SUMIFS(details!$G:$G,details!$B:$B,Overview!$B50,details!$L:$L,Overview!E$2) -> 265 | F51: =+SUMIFS(details!$G:$G,details!$B:$B,Overview!$B50,details!$L:$L,Overview!F$2) -> 265 | G51: =+SUMIFS(details!$G:$G,details!$B:$B,Overview!$B50,details!$L:$L,Overview!G$2) -> 265 | H51: =+R51+W51-Q51 -> 265 | I51: =+SUMIFS(details!$F:$F,details!$B:$B,Overview!$B50,details!$L:$L,Overview!I$2) -> 265 | J51: =+SUMIFS(details!$F:$F,details!$B:$B,Overview!$B50,details!$L:$L,Overview!J$2) -> 265 | K51: =+SUMIFS(details!$F:$F,details!$B:$B,Overview!$B50,details!$L:$L,Overview!K$2) -> 265 | L51: =+SUMIFS(details!$F:$F,details!$B:$B,Overview!$B50,details!$L:$L,Overview!L$2) -> 265 | M51: =+SUMIFS(details!$F:$F,details!$B:$B,Overview!$B50,details!$L:$L,Overview!M$2) -> 265 | N51: =+SUMIFS(details!$F:$F,details!$B:$B,Overview!$B50,details!$L:$L,Overview!N$2) -> 265 | P51: =+SUMIFS(details!$G:$G,details!$B:$B,Overview!$B50,details!$L:$L,Overview!P$2,details!$K:$K,"<="&Settings!$C$4) -> 265 | Q51: =+SUMIFS(details!$F:$F,details!$B:$B,Overview!$B50,details!$L:$L,Overview!Q$2,details!$K:$K,"<="&Settings!$C$4) -> 240 | R51: =+SUMIFS(details!$G:$G,details!$B:$B,Overview!$B50,details!$L:$L,Overview!R$2,details!$K:$K,"<="&Settings!$C$4) -> 265 | S51: =IFERROR(R51/Q51-1,"n/a") -> 10% | T51: =IFERROR(R51/P51-1,"n/a") -> 0% | V51: =+G51 -> 265 | W51: =+SUMIFS(details!$F:$F,details!$B:$B,Overview!$B50,details!$L:$L,Overview!W$2) -> 240 | X51: =+H51 -> 265 | Y51: =IFERROR(X51/W51-1,"n/a") -> 10% | Z51: =IFERROR(X51/V51-1,"n/a") -> 0%
B52: Revenue | D52: =+SUMIFS(details!$I:$I,details!$B:$B,Overview!$B50,details!$L:$L,Overview!D$2) -> 50 | E52: =+SUMIFS(details!$I:$I,details!$B:$B,Overview!$B50,details!$L:$L,Overview!E$2) -> 50 | F52: =+SUMIFS(details!$I:$I,details!$B:$B,Overview!$B50,details!$L:$L,Overview!F$2) -> 50 | G52: =+SUMIFS(details!$I:$I,details!$B:$B,Overview!$B50,details!$L:$L,Overview!G$2) -> 50 | H52: =+R52+W52-Q52 -> 55 | I52: =+SUMIFS(details!$H:$H,details!$B:$B,Overview!$B50,details!$L:$L,Overview!I$2) -> 50 | J52: =+SUMIFS(details!$H:$H,details!$B:$B,Overview!$B50,details!$L:$L,Overview!J$2) -> 50 | K52: =+SUMIFS(details!$H:$H,details!$B:$B,Overview!$B50,details!$L:$L,Overview!K$2) -> 50 | L52: =+SUMIFS(details!$H:$H,details!$B:$B,Overview!$B50,details!$L:$L,Overview!L$2) -> 50 | M52: =+SUMIFS(details!$H:$H,details!$B:$B,Overview!$B50,details!$L:$L,Overview!M$2) -> 50 | N52: =+SUMIFS(details!$H:$H,details!$B:$B,Overview!$B50,details!$L:$L,Overview!N$2) -> 50 | P52: =+SUMIFS(details!$I:$I,details!$B:$B,Overview!$B50,details!$L:$L,Overview!P$2,details!$K:$K,"<="&Settings!$C$4) -> 50 | Q52: =+SUMIFS(details!$H:$H,details!$B:$B,Overview!$B50,details!$L:$L,Overview!Q$2,details!$K:$K,"<="&Settings!$C$4) -> 50 | R52: =+SUMIFS(details!$I:$I,details!$B:$B,Overview!$B50,details!$L:$L,Overview!R$2,details!$K:$K,"<="&Settings!$C$4) -> 55 | S52: 10% | T52: 10% | V52: 50 | W52: =+SUMIFS(details!$H:$H,details!$B:$B,Overview!$B50,details!$L:$L,Overview!W$2) -> 50 | X52: 55 | Y52: 10% | Z52: 10%
B53: Project count | D53: =+COUNTIFS(details!$B:$B,Overview!$B50,details!$L:$L,Overview!D$2) -> 5 | E53: =+COUNTIFS(details!$B:$B,Overview!$B50,details!$L:$L,Overview!E$2) -> 5 | F53: =+COUNTIFS(details!$B:$B,Overview!$B50,details!$L:$L,Overview!F$2) -> 5 | G53: =+COUNTIFS(details!$B:$B,Overview!$B50,details!$L:$L,Overview!G$2) -> 5 | H53: =+R53+W53-Q53 -> 5 | I53: =+COUNTIFS(details!$B:$B,Overview!$B50,details!$L:$L,Overview!I$2) -> 5 | J53: =+COUNTIFS(details!$B:$B,Overview!$B50,details!$L:$L,Overview!J$2) -> 5 | K53: =+COUNTIFS(details!$B:$B,Overview!$B50,details!$L:$L,Overview!K$2) -> 5 | L53: =+COUNTIFS(details!$B:$B,Overview!$B50,details!$L:$L,Overview!L$2) -> 5 | M53: =+COUNTIFS(details!$B:$B,Overview!$B50,details!$L:$L,Overview!M$2) -> 5 | N53: =+COUNTIFS(details!$B:$B,Overview!$B50,details!$L:$L,Overview!N$2) -> 5 | P53: =+COUNTIFS(details!$B:$B,Overview!$B50,details!$L:$L,Overview!G$2,details!$K:$K,"<="&Settings!$C$4) -> 5 | Q53: =+COUNTIFS(details!$B:$B,Overview!$B50,details!$L:$L,Overview!Q$2,details!$K:$K,"<="&Settings!$C$4) -> 5 | R53: =+COUNTIFS(details!$B:$B,Overview!$B50,details!$L:$L,Overview!I$2,details!$K:$K,"<="&Settings!$C$4) -> 5 | S53: 0% | T53: 0% | V53: 5 | W53: =+COUNTIFS(details!$B:$B,Overview!$B50,details!$L:$L,Overview!W$2) -> 5 | X53: 5 | Y53: 0% | Z53: 0%
B55: =+masterfile!B6 -> Other
B56: Costs | D56: =+SUMIFS(details!$G:$G,details!$B:$B,Overview!$B55,details!$L:$L,Overview!D$2) -> 20 | E56: =+SUMIFS(details!$G:$G,details!$B:$B,Overview!$B55,details!$L:$L,Overview!E$2) -> 20 | F56: =+SUMIFS(details!$G:$G,details!$B:$B,Overview!$B55,details!$L:$L,Overview!F$2) -> 20 | G56: =+SUMIFS(details!$G:$G,details!$B:$B,Overview!$B55,details!$L:$L,Overview!G$2) -> 20 | H56: =+R56+W56-Q56 -> 20 | I56: =+SUMIFS(details!$F:$F,details!$B:$B,Overview!$B55,details!$L:$L,Overview!I$2) -> 20 | J56: =+SUMIFS(details!$F:$F,details!$B:$B,Overview!$B55,details!$L:$L,Overview!J$2) -> 20 | K56: =+SUMIFS(details!$F:$F,details!$B:$B,Overview!$B55,details!$L:$L,Overview!K$2) -> 20 | L56: =+SUMIFS(details!$F:$F,details!$B:$B,Overview!$B55,details!$L:$L,Overview!L$2) -> 20 | M56: =+SUMIFS(details!$F:$F,details!$B:$B,Overview!$B55,details!$L:$L,Overview!M$2) -> 20 | N56: =+SUMIFS(details!$F:$F,details!$B:$B,Overview!$B55,details!$L:$L,Overview!N$2) -> 20 | P56: =+SUMIFS(details!$G:$G,details!$B:$B,Overview!$B55,details!$L:$L,Overview!P$2,details!$K:$K,"<="&Settings!$C$4) -> 20 | Q56: =+SUMIFS(details!$F:$F,details!$B:$B,Overview!$B55,details!$L:$L,Overview!Q$2,details!$K:$K,"<="&Settings!$C$4) -> 20 | R56: =+SUMIFS(details!$G:$G,details!$B:$B,Overview!$B55,details!$L:$L,Overview!R$2,details!$K:$K,"<="&Settings!$C$4) -> 20 | S56: =IFERROR(R56/Q56-1,"n/a") -> 0% | T56: =IFERROR(R56/P56-1,"n/a") -> 0% | V56: =+G56 -> 20 | W56: =+SUMIFS(details!$F:$F,details!$B:$B,Overview!$B55,details!$L:$L,Overview!W$2) -> 20 | X56: =+H56 -> 20 | Y56: =IFERROR(X56/W56-1,"n/a") -> 0% | Z56: =IFERROR(X56/V56-1,"n/a") -> 0%
B57: Revenue | D57: =+SUMIFS(details!$I:$I,details!$B:$B,Overview!$B55,details!$L:$L,Overview!D$2) -> 0 | E57: =+SUMIFS(details!$I:$I,details!$B:$B,Overview!$B55,details!$L:$L,Overview!E$2) -> 0 | F57: =+SUMIFS(details!$I:$I,details!$B:$B,Overview!$B55,details!$L:$L,Overview!F$2) -> 0 | G57: =+SUMIFS(details!$I:$I,details!$B:$B,Overview!$B55,details!$L:$L,Overview!G$2) -> 0 | H57: =+R57+W57-Q57 -> 0 | I57: =+SUMIFS(details!$H:$H,details!$B:$B,Overview!$B55,details!$L:$L,Overview!I$2) -> 0 | J57: =+SUMIFS(details!$H:$H,details!$B:$B,Overview!$B55,details!$L:$L,Overview!J$2) -> 0 | K57: =+SUMIFS(details!$H:$H,details!$B:$B,Overview!$B55,details!$L:$L,Overview!K$2) -> 0 | L57: =+SUMIFS(details!$H:$H,details!$B:$B,Overview!$B55,details!$L:$L,Overview!L$2) -> 0 | M57: =+SUMIFS(details!$H:$H,details!$B:$B,Overview!$B55,details!$L:$L,Overview!M$2) -> 0 | N57: =+SUMIFS(details!$H:$H,details!$B:$B,Overview!$B55,details!$L:$L,Overview!N$2) -> 0 | P57: =+SUMIFS(details!$I:$I,details!$B:$B,Overview!$B55,details!$L:$L,Overview!P$2,details!$K:$K,"<="&Settings!$C$4) -> 0 | Q57: =+SUMIFS(details!$H:$H,details!$B:$B,Overview!$B55,details!$L:$L,Overview!Q$2,details!$K:$K,"<="&Settings!$C$4) -> 0 | R57: =+SUMIFS(details!$I:$I,details!$B:$B,Overview!$B55,details!$L:$L,Overview!R$2,details!$K:$K,"<="&Settings!$C$4) -> 0 | S57: n/a | T57: n/a | V57: 0 | W57: =+SUMIFS(details!$H:$H,details!$B:$B,Overview!$B55,details!$L:$L,Overview!W$2) -> 0 | X57: 0 | Y57: n/a | Z57: n/a
B58: Project count | D58: =+COUNTIFS(details!$B:$B,Overview!$B55,details!$L:$L,Overview!D$2) -> 20 | E58: =+COUNTIFS(details!$B:$B,Overview!$B55,details!$L:$L,Overview!E$2) -> 20 | F58: =+COUNTIFS(details!$B:$B,Overview!$B55,details!$L:$L,Overview!F$2) -> 20 | G58: =+COUNTIFS(details!$B:$B,Overview!$B55,details!$L:$L,Overview!G$2) -> 20 | H58: =+R58+W58-Q58 -> 20 | I58: =+COUNTIFS(details!$B:$B,Overview!$B55,details!$L:$L,Overview!I$2) -> 20 | J58: =+COUNTIFS(details!$B:$B,Overview!$B55,details!$L:$L,Overview!J$2) -> 20 | K58: =+COUNTIFS(details!$B:$B,Overview!$B55,details!$L:$L,Overview!K$2) -> 20 | L58: =+COUNTIFS(details!$B:$B,Overview!$B55,details!$L:$L,Overview!L$2) -> 20 | M58: =+COUNTIFS(details!$B:$B,Overview!$B55,details!$L:$L,Overview!M$2) -> 20 | N58: =+COUNTIFS(details!$B:$B,Overview!$B55,details!$L:$L,Overview!N$2) -> 20 | P58: =+COUNTIFS(details!$B:$B,Overview!$B55,details!$L:$L,Overview!G$2,details!$K:$K,"<="&Settings!$C$4) -> 20 | Q58: =+COUNTIFS(details!$B:$B,Overview!$B55,details!$L:$L,Overview!Q$2,details!$K:$K,"<="&Settings!$C$4) -> 20 | R58: =+COUNTIFS(details!$B:$B,Overview!$B55,details!$L:$L,Overview!I$2,details!$K:$K,"<="&Settings!$C$4) -> 20 | S58: 0% | T58: 0% | V58: 20 | W58: =+COUNTIFS(details!$B:$B,Overview!$B55,details!$L:$L,Overview!W$2) -> 20 | X58: 20 | Y58: 0% | Z58: 0%
B60: =+masterfile!B7 -> Newsletter
B61: Costs | D61: =+SUMIFS(details!$G:$G,details!$B:$B,Overview!$B60,details!$L:$L,Overview!D$2) -> 23 | E61: =+SUMIFS(details!$G:$G,details!$B:$B,Overview!$B60,details!$L:$L,Overview!E$2) -> 23 | F61: =+SUMIFS(details!$G:$G,details!$B:$B,Overview!$B60,details!$L:$L,Overview!F$2) -> 23 | G61: =+SUMIFS(details!$G:$G,details!$B:$B,Overview!$B60,details!$L:$L,Overview!G$2) -> 23 | H61: =+R61+W61-Q61 -> 23 | I61: =+SUMIFS(details!$F:$F,details!$B:$B,Overview!$B60,details!$L:$L,Overview!I$2) -> 23 | J61: =+SUMIFS(details!$F:$F,details!$B:$B,Overview!$B60,details!$L:$L,Overview!J$2) -> 23 | K61: =+SUMIFS(details!$F:$F,details!$B:$B,Overview!$B60,details!$L:$L,Overview!K$2) -> 23 | L61: =+SUMIFS(details!$F:$F,details!$B:$B,Overview!$B60,details!$L:$L,Overview!L$2) -> 23 | M61: =+SUMIFS(details!$F:$F,details!$B:$B,Overview!$B60,details!$L:$L,Overview!M$2) -> 23 | N61: =+SUMIFS(details!$F:$F,details!$B:$B,Overview!$B60,details!$L:$L,Overview!N$2) -> 23 | P61: =+SUMIFS(details!$G:$G,details!$B:$B,Overview!$B60,details!$L:$L,Overview!P$2,details!$K:$K,"<="&Settings!$C$4) -> 23 | Q61: =+SUMIFS(details!$F:$F,details!$B:$B,Overview!$B60,details!$L:$L,Overview!Q$2,details!$K:$K,"<="&Settings!$C$4) -> 23 | R61: =+SUMIFS(details!$G:$G,details!$B:$B,Overview!$B60,details!$L:$L,Overview!R$2,details!$K:$K,"<="&Settings!$C$4) -> 23 | S61: =IFERROR(R61/Q61-1,"n/a") -> 0% | T61: =IFERROR(R61/P61-1,"n/a") -> 0% | V61: =+G61 -> 23 | W61: =+SUMIFS(details!$F:$F,details!$B:$B,Overview!$B60,details!$L:$L,Overview!W$2) -> 23 | X61: =+H61 -> 23 | Y61: =IFERROR(X61/W61-1,"n/a") -> 0% | Z61: =IFERROR(X61/V61-1,"n/a") -> 0%
B62: Revenue | D62: =+SUMIFS(details!$I:$I,details!$B:$B,Overview!$B60,details!$L:$L,Overview!D$2) -> 0 | E62: =+SUMIFS(details!$I:$I,details!$B:$B,Overview!$B60,details!$L:$L,Overview!E$2) -> 0 | F62: =+SUMIFS(details!$I:$I,details!$B:$B,Overview!$B60,details!$L:$L,Overview!F$2) -> 0 | G62: =+SUMIFS(details!$I:$I,details!$B:$B,Overview!$B60,details!$L:$L,Overview!G$2) -> 0 | H62: =+R62+W62-Q62 -> 0 | I62: =+SUMIFS(details!$H:$H,details!$B:$B,Overview!$B60,details!$L:$L,Overview!I$2) -> 0 | J62: =+SUMIFS(details!$H:$H,details!$B:$B,Overview!$B60,details!$L:$L,Overview!J$2) -> 0 | K62: =+SUMIFS(details!$H:$H,details!$B:$B,Overview!$B60,details!$L:$L,Overview!K$2) -> 0 | L62: =+SUMIFS(details!$H:$H,details!$B:$B,Overview!$B60,details!$L:$L,Overview!L$2) -> 0 | M62: =+SUMIFS(details!$H:$H,details!$B:$B,Overview!$B60,details!$L:$L,Overview!M$2) -> 0 | N62: =+SUMIFS(details!$H:$H,details!$B:$B,Overview!$B60,details!$L:$L,Overview!N$2) -> 0 | P62: =+SUMIFS(details!$I:$I,details!$B:$B,Overview!$B60,details!$L:$L,Overview!P$2,details!$K:$K,"<="&Settings!$C$4) -> 0 | Q62: =+SUMIFS(details!$H:$H,details!$B:$B,Overview!$B60,details!$L:$L,Overview!Q$2,details!$K:$K,"<="&Settings!$C$4) -> 0 | R62: =+SUMIFS(details!$I:$I,details!$B:$B,Overview!$B60,details!$L:$L,Overview!R$2,details!$K:$K,"<="&Settings!$C$4) -> 0 | S62: n/a | T62: n/a | V62: 0 | W62: =+SUMIFS(details!$H:$H,details!$B:$B,Overview!$B60,details!$L:$L,Overview!W$2) -> 0 | X62: 0 | Y62: n/a | Z62: n/a
B63: Project count | D63: =+COUNTIFS(details!$B:$B,Overview!$B60,details!$L:$L,Overview!D$2) -> 6 | E63: =+COUNTIFS(details!$B:$B,Overview!$B60,details!$L:$L,Overview!E$2) -> 6 | F63: =+COUNTIFS(details!$B:$B,Overview!$B60,details!$L:$L,Overview!F$2) -> 6 | G63: =+COUNTIFS(details!$B:$B,Overview!$B60,details!$L:$L,Overview!G$2) -> 6 | H63: =+R63+W63-Q63 -> 6 | I63: =+COUNTIFS(details!$B:$B,Overview!$B60,details!$L:$L,Overview!I$2) -> 6 | J63: =+COUNTIFS(details!$B:$B,Overview!$B60,details!$L:$L,Overview!J$2) -> 6 | K63: =+COUNTIFS(details!$B:$B,Overview!$B60,details!$L:$L,Overview!K$2) -> 6 | L63: =+COUNTIFS(details!$B:$B,Overview!$B60,details!$L:$L,Overview!L$2) -> 6 | M63: =+COUNTIFS(details!$B:$B,Overview!$B60,details!$L:$L,Overview!M$2) -> 6 | N63: =+COUNTIFS(details!$B:$B,Overview!$B60,details!$L:$L,Overview!N$2) -> 6 | P63: =+COUNTIFS(details!$B:$B,Overview!$B60,details!$L:$L,Overview!G$2,details!$K:$K,"<="&Settings!$C$4) -> 6 | Q63: =+COUNTIFS(details!$B:$B,Overview!$B60,details!$L:$L,Overview!Q$2,details!$K:$K,"<="&Settings!$C$4) -> 6 | R63: =+COUNTIFS(details!$B:$B,Overview!$B60,details!$L:$L,Overview!I$2,details!$K:$K,"<="&Settings!$C$4) -> 6 | S63: 0% | T63: 0% | V63: 6 | W63: =+COUNTIFS(details!$B:$B,Overview!$B60,details!$L:$L,Overview!W$2) -> 6 | X63: 6 | Y63: 0% | Z63: 0%
B65: =+masterfile!B8 -> Catalog
B66: Costs | D66: =+SUMIFS(details!$G:$G,details!$B:$B,Overview!$B65,details!$L:$L,Overview!D$2) -> 125 | E66: =+SUMIFS(details!$G:$G,details!$B:$B,Overview!$B65,details!$L:$L,Overview!E$2) -> 125 | F66: =+SUMIFS(details!$G:$G,details!$B:$B,Overview!$B65,details!$L:$L,Overview!F$2) -> 125 | G66: =+SUMIFS(details!$G:$G,details!$B:$B,Overview!$B65,details!$L:$L,Overview!G$2) -> 125 | H66: =+R66+W66-Q66 -> 125 | I66: =+SUMIFS(details!$F:$F,details!$B:$B,Overview!$B65,details!$L:$L,Overview!I$2) -> 125 | J66: =+SUMIFS(details!$F:$F,details!$B:$B,Overview!$B65,details!$L:$L,Overview!J$2) -> 125 | K66: =+SUMIFS(details!$F:$F,details!$B:$B,Overview!$B65,details!$L:$L,Overview!K$2) -> 125 | L66: =+SUMIFS(details!$F:$F,details!$B:$B,Overview!$B65,details!$L:$L,Overview!L$2) -> 125 | M66: =+SUMIFS(details!$F:$F,details!$B:$B,Overview!$B65,details!$L:$L,Overview!M$2) -> 125 | N66: =+SUMIFS(details!$F:$F,details!$B:$B,Overview!$B65,details!$L:$L,Overview!N$2) -> 125 | P66: =+SUMIFS(details!$G:$G,details!$B:$B,Overview!$B65,details!$L:$L,Overview!P$2,details!$K:$K,"<="&Settings!$C$4) -> 125 | Q66: =+SUMIFS(details!$F:$F,details!$B:$B,Overview!$B65,details!$L:$L,Overview!Q$2,details!$K:$K,"<="&Settings!$C$4) -> 125 | R66: =+SUMIFS(details!$G:$G,details!$B:$B,Overview!$B65,details!$L:$L,Overview!R$2,details!$K:$K,"<="&Settings!$C$4) -> 125 | S66: =IFERROR(R66/Q66-1,"n/a") -> 0% | T66: =IFERROR(R66/P66-1,"n/a") -> 0% | V66: =+G66 -> 125 | W66: =+SUMIFS(details!$F:$F,details!$B:$B,Overview!$B65,details!$L:$L,Overview!W$2) -> 125 | X66: =+H66 -> 125 | Y66: =IFERROR(X66/W66-1,"n/a") -> 0% | Z66: =IFERROR(X66/V66-1,"n/a") -> 0%
B67: Revenue | D67: =+SUMIFS(details!$I:$I,details!$B:$B,Overview!$B65,details!$L:$L,Overview!D$2) -> 325 | E67: =+SUMIFS(details!$I:$I,details!$B:$B,Overview!$B65,details!$L:$L,Overview!E$2) -> 325 | F67: =+SUMIFS(details!$I:$I,details!$B:$B,Overview!$B65,details!$L:$L,Overview!F$2) -> 325 | G67: =+SUMIFS(details!$I:$I,details!$B:$B,Overview!$B65,details!$L:$L,Overview!G$2) -> 325 | H67: =+R67+W67-Q67 -> 325 | I67: =+SUMIFS(details!$H:$H,details!$B:$B,Overview!$B65,details!$L:$L,Overview!I$2) -> 325 | J67: =+SUMIFS(details!$H:$H,details!$B:$B,Overview!$B65,details!$L:$L,Overview!J$2) -> 325 | K67: =+SUMIFS(details!$H:$H,details!$B:$B,Overview!$B65,details!$L:$L,Overview!K$2) -> 325 | L67: =+SUMIFS(details!$H:$H,details!$B:$B,Overview!$B65,details!$L:$L,Overview!L$2) -> 325 | M67: =+SUMIFS(details!$H:$H,details!$B:$B,Overview!$B65,details!$L:$L,Overview!M$2) -> 325 | N67: =+SUMIFS(details!$H:$H,details!$B:$B,Overview!$B65,details!$L:$L,Overview!N$2) -> 325 | P67: =+SUMIFS(details!$I:$I,details!$B:$B,Overview!$B65,details!$L:$L,Overview!P$2,details!$K:$K,"<="&Settings!$C$4) -> 325 | Q67: =+SUMIFS(details!$H:$H,details!$B:$B,Overview!$B65,details!$L:$L,Overview!Q$2,details!$K:$K,"<="&Settings!$C$4) -> 325 | R67: =+SUMIFS(details!$I:$I,details!$B:$B,Overview!$B65,details!$L:$L,Overview!R$2,details!$K:$K,"<="&Settings!$C$4) -> 325 | S67: 0% | T67: 0% | V67: 325 | W67: =+SUMIFS(details!$H:$H,details!$B:$B,Overview!$B65,details!$L:$L,Overview!W$2) -> 325 | X67: 325 | Y67: 0% | Z67: 0%
B68: Project count | D68: =+COUNTIFS(details!$B:$B,Overview!$B65,details!$L:$L,Overview!D$2) -> 5 | E68: =+COUNTIFS(details!$B:$B,Overview!$B65,details!$L:$L,Overview!E$2) -> 5 | F68: =+COUNTIFS(details!$B:$B,Overview!$B65,details!$L:$L,Overview!F$2) -> 5 | G68: =+COUNTIFS(details!$B:$B,Overview!$B65,details!$L:$L,Overview!G$2) -> 5 | H68: =+R68+W68-Q68 -> 5 | I68: =+COUNTIFS(details!$B:$B,Overview!$B65,details!$L:$L,Overview!I$2) -> 5 | J68: =+COUNTIFS(details!$B:$B,Overview!$B65,details!$L:$L,Overview!J$2) -> 5 | K68: =+COUNTIFS(details!$B:$B,Overview!$B65,details!$L:$L,Overview!K$2) -> 5 | L68: =+COUNTIFS(details!$B:$B,Overview!$B65,details!$L:$L,Overview!L$2) -> 5 | M68: =+COUNTIFS(details!$B:$B,Overview!$B65,details!$L:$L,Overview!M$2) -> 5 | N68: =+COUNTIFS(details!$B:$B,Overview!$B65,details!$L:$L,Overview!N$2) -> 5 | P68: =+COUNTIFS(details!$B:$B,Overview!$B65,details!$L:$L,Overview!G$2,details!$K:$K,"<="&Settings!$C$4) -> 5 | Q68: =+COUNTIFS(details!$B:$B,Overview!$B65,details!$L:$L,Overview!Q$2,details!$K:$K,"<="&Settings!$C$4) -> 5 | R68: =+COUNTIFS(details!$B:$B,Overview!$B65,details!$L:$L,Overview!I$2,details!$K:$K,"<="&Settings!$C$4) -> 5 | S68: 0% | T68: 0% | V68: 5 | W68: =+COUNTIFS(details!$B:$B,Overview!$B65,details!$L:$L,Overview!W$2) -> 5 | X68: 5 | Y68: 0% | Z68: 0%
B70: =+masterfile!B9 -> Flyer
B71: Costs | D71: =+SUMIFS(details!$G:$G,details!$B:$B,Overview!$B70,details!$L:$L,Overview!D$2) -> 125 | E71: =+SUMIFS(details!$G:$G,details!$B:$B,Overview!$B70,details!$L:$L,Overview!E$2) -> 125 | F71: =+SUMIFS(details!$G:$G,details!$B:$B,Overview!$B70,details!$L:$L,Overview!F$2) -> 125 | G71: =+SUMIFS(details!$G:$G,details!$B:$B,Overview!$B70,details!$L:$L,Overview!G$2) -> 125 | H71: =+R71+W71-Q71 -> 125 | I71: =+SUMIFS(details!$F:$F,details!$B:$B,Overview!$B70,details!$L:$L,Overview!I$2) -> 125 | J71: =+SUMIFS(details!$F:$F,details!$B:$B,Overview!$B70,details!$L:$L,Overview!J$2) -> 125 | K71: =+SUMIFS(details!$F:$F,details!$B:$B,Overview!$B70,details!$L:$L,Overview!K$2) -> 125 | L71: =+SUMIFS(details!$F:$F,details!$B:$B,Overview!$B70,details!$L:$L,Overview!L$2) -> 125 | M71: =+SUMIFS(details!$F:$F,details!$B:$B,Overview!$B70,details!$L:$L,Overview!M$2) -> 125 | N71: =+SUMIFS(details!$F:$F,details!$B:$B,Overview!$B70,details!$L:$L,Overview!N$2) -> 125 | P71: =+SUMIFS(details!$G:$G,details!$B:$B,Overview!$B70,details!$L:$L,Overview!P$2,details!$K:$K,"<="&Settings!$C$4) -> 125 | Q71: =+SUMIFS(details!$F:$F,details!$B:$B,Overview!$B70,details!$L:$L,Overview!Q$2,details!$K:$K,"<="&Settings!$C$4) -> 125 | R71: =+SUMIFS(details!$G:$G,details!$B:$B,Overview!$B70,details!$L:$L,Overview!R$2,details!$K:$K,"<="&Settings!$C$4) -> 125 | S71: =IFERROR(R71/Q71-1,"n/a") -> 0% | T71: =IFERROR(R71/P71-1,"n/a") -> 0% | V71: =+G71 -> 125 | W71: =+SUMIFS(details!$F:$F,details!$B:$B,Overview!$B70,details!$L:$L,Overview!W$2) -> 125 | X71: =+H71 -> 125 | Y71: =IFERROR(X71/W71-1,"n/a") -> 0% | Z71: =IFERROR(X71/V71-1,"n/a") -> 0%
B72: Revenue | D72: =+SUMIFS(details!$I:$I,details!$B:$B,Overview!$B70,details!$L:$L,Overview!D$2) -> 325 | E72: =+SUMIFS(details!$I:$I,details!$B:$B,Overview!$B70,details!$L:$L,Overview!E$2) -> 325 | F72: =+SUMIFS(details!$I:$I,details!$B:$B,Overview!$B70,details!$L:$L,Overview!F$2) -> 325 | G72: =+SUMIFS(details!$I:$I,details!$B:$B,Overview!$B70,details!$L:$L,Overview!G$2) -> 325 | H72: =+R72+W72-Q72 -> 325 | I72: =+SUMIFS(details!$H:$H,details!$B:$B,Overview!$B70,details!$L:$L,Overview!I$2) -> 325 | J72: =+SUMIFS(details!$H:$H,details!$B:$B,Overview!$B70,details!$L:$L,Overview!J$2) -> 325 | K72: =+SUMIFS(details!$H:$H,details!$B:$B,Overview!$B70,details!$L:$L,Overview!K$2) -> 325 | L72: =+SUMIFS(details!$H:$H,details!$B:$B,Overview!$B70,details!$L:$L,Overview!L$2) -> 325 | M72: =+SUMIFS(details!$H:$H,details!$B:$B,Overview!$B70,details!$L:$L,Overview!M$2) -> 325 | N72: =+SUMIFS(details!$H:$H,details!$B:$B,Overview!$B70,details!$L:$L,Overview!N$2) -> 325 | P72: =+SUMIFS(details!$I:$I,details!$B:$B,Overview!$B70,details!$L:$L,Overview!P$2,details!$K:$K,"<="&Settings!$C$4) -> 325 | Q72: =+SUMIFS(details!$H:$H,details!$B:$B,Overview!$B70,details!$L:$L,Overview!Q$2,details!$K:$K,"<="&Settings!$C$4) -> 325 | R72: =+SUMIFS(details!$I:$I,details!$B:$B,Overview!$B70,details!$L:$L,Overview!R$2,details!$K:$K,"<="&Settings!$C$4) -> 325 | S72: 0% | T72: 0% | V72: 325 | W72: =+SUMIFS(details!$H:$H,details!$B:$B,Overview!$B70,details!$L:$L,Overview!W$2) -> 325 | X72: 325 | Y72: 0% | Z72: 0%
B73: Project count | D73: =+COUNTIFS(details!$B:$B,Overview!$B70,details!$L:$L,Overview!D$2) -> 5 | E73: =+COUNTIFS(details!$B:$B,Overview!$B70,details!$L:$L,Overview!E$2) -> 5 | F73: =+COUNTIFS(details!$B:$B,Overview!$B70,details!$L:$L,Overview!F$2) -> 5 | G73: =+COUNTIFS(details!$B:$B,Overview!$B70,details!$L:$L,Overview!G$2) -> 5 | H73: =+R73+W73-Q73 -> 5 | I73: =+COUNTIFS(details!$B:$B,Overview!$B70,details!$L:$L,Overview!I$2) -> 5 | J73: =+COUNTIFS(details!$B:$B,Overview!$B70,details!$L:$L,Overview!J$2) -> 5 | K73: =+COUNTIFS(details!$B:$B,Overview!$B70,details!$L:$L,Overview!K$2) -> 5 | L73: =+COUNTIFS(details!$B:$B,Overview!$B70,details!$L:$L,Overview!L$2) -> 5 | M73: =+COUNTIFS(details!$B:$B,Overview!$B70,details!$L:$L,Overview!M$2) -> 5 | N73: =+COUNTIFS(details!$B:$B,Overview!$B70,details!$L:$L,Overview!N$2) -> 5 | P73: =+COUNTIFS(details!$B:$B,Overview!$B70,details!$L:$L,Overview!G$2,details!$K:$K,"<="&Settings!$C$4) -> 5 | Q73: =+COUNTIFS(details!$B:$B,Overview!$B70,details!$L:$L,Overview!Q$2,details!$K:$K,"<="&Settings!$C$4) -> 5 | R73: =+COUNTIFS(details!$B:$B,Overview!$B70,details!$L:$L,Overview!I$2,details!$K:$K,"<="&Settings!$C$4) -> 5 | S73: 0% | T73: 0% | V73: 5 | W73: =+COUNTIFS(details!$B:$B,Overview!$B70,details!$L:$L,Overview!W$2) -> 5 | X73: 5 | Y73: 0% | Z73: 0%
B75: =+masterfile!B10 -> Merchandise
B76: Costs | D76: =+SUMIFS(details!$G:$G,details!$B:$B,Overview!$B75,details!$L:$L,Overview!D$2) -> 100 | E76: =+SUMIFS(details!$G:$G,details!$B:$B,Overview!$B75,details!$L:$L,Overview!E$2) -> 100 | F76: =+SUMIFS(details!$G:$G,details!$B:$B,Overview!$B75,details!$L:$L,Overview!F$2) -> 100 | G76: =+SUMIFS(details!$G:$G,details!$B:$B,Overview!$B75,details!$L:$L,Overview!G$2) -> 100 | H76: =+R76+W76-Q76 -> 100 | I76: =+SUMIFS(details!$F:$F,details!$B:$B,Overview!$B75,details!$L:$L,Overview!I$2) -> 100 | J76: =+SUMIFS(details!$F:$F,details!$B:$B,Overview!$B75,details!$L:$L,Overview!J$2) -> 100 | K76: =+SUMIFS(details!$F:$F,details!$B:$B,Overview!$B75,details!$L:$L,Overview!K$2) -> 100 | L76: =+SUMIFS(details!$F:$F,details!$B:$B,Overview!$B75,details!$L:$L,Overview!L$2) -> 100 | M76: =+SUMIFS(details!$F:$F,details!$B:$B,Overview!$B75,details!$L:$L,Overview!M$2) -> 100 | N76: =+SUMIFS(details!$F:$F,details!$B:$B,Overview!$B75,details!$L:$L,Overview!N$2) -> 100 | P76: =+SUMIFS(details!$G:$G,details!$B:$B,Overview!$B75,details!$L:$L,Overview!P$2,details!$K:$K,"<="&Settings!$C$4) -> 100 | Q76: =+SUMIFS(details!$F:$F,details!$B:$B,Overview!$B75,details!$L:$L,Overview!Q$2,details!$K:$K,"<="&Settings!$C$4) -> 100 | R76: =+SUMIFS(details!$G:$G,details!$B:$B,Overview!$B75,details!$L:$L,Overview!R$2,details!$K:$K,"<="&Settings!$C$4) -> 100 | S76: =IFERROR(R76/Q76-1,"n/a") -> 0% | T76: =IFERROR(R76/P76-1,"n/a") -> 0% | V76: =+G76 -> 100 | W76: =+SUMIFS(details!$F:$F,details!$B:$B,Overview!$B75,details!$L:$L,Overview!W$2) -> 100 | X76: =+H76 -> 100 | Y76: =IFERROR(X76/W76-1,"n/a") -> 0% | Z76: =IFERROR(X76/V76-1,"n/a") -> 0%
B77: Revenue | D77: =+SUMIFS(details!$I:$I,details!$B:$B,Overview!$B75,details!$L:$L,Overview!D$2) -> 250 | E77: =+SUMIFS(details!$I:$I,details!$B:$B,Overview!$B75,details!$L:$L,Overview!E$2) -> 250 | F77: =+SUMIFS(details!$I:$I,details!$B:$B,Overview!$B75,details!$L:$L,Overview!F$2) -> 250 | G77: =+SUMIFS(details!$I:$I,details!$B:$B,Overview!$B75,details!$L:$L,Overview!G$2) -> 250 | H77: =+R77+W77-Q77 -> 250 | I77: =+SUMIFS(details!$H:$H,details!$B:$B,Overview!$B75,details!$L:$L,Overview!I$2) -> 250 | J77: =+SUMIFS(details!$H:$H,details!$B:$B,Overview!$B75,details!$L:$L,Overview!J$2) -> 250 | K77: =+SUMIFS(details!$H:$H,details!$B:$B,Overview!$B75,details!$L:$L,Overview!K$2) -> 250 | L77: =+SUMIFS(details!$H:$H,details!$B:$B,Overview!$B75,details!$L:$L,Overview!L$2) -> 250 | M77: =+SUMIFS(details!$H:$H,details!$B:$B,Overview!$B75,details!$L:$L,Overview!M$2) -> 250 | N77: =+SUMIFS(details!$H:$H,details!$B:$B,Overview!$B75,details!$L:$L,Overview!N$2) -> 250 | P77: =+SUMIFS(details!$I:$I,details!$B:$B,Overview!$B75,details!$L:$L,Overview!P$2,details!$K:$K,"<="&Settings!$C$4) -> 250 | Q77: =+SUMIFS(details!$H:$H,details!$B:$B,Overview!$B75,details!$L:$L,Overview!Q$2,details!$K:$K,"<="&Settings!$C$4) -> 250 | R77: =+SUMIFS(details!$I:$I,details!$B:$B,Overview!$B75,details!$L:$L,Overview!R$2,details!$K:$K,"<="&Settings!$C$4) -> 250 | S77: 0% | T77: 0% | V77: 250 | W77: =+SUMIFS(details!$H:$H,details!$B:$B,Overview!$B75,details!$L:$L,Overview!W$2) -> 250 | X77: 250 | Y77: 0% | Z77: 0%
B78: Project count | D78: =+COUNTIFS(details!$B:$B,Overview!$B75,details!$L:$L,Overview!D$2) -> 1 | E78: =+COUNTIFS(details!$B:$B,Overview!$B75,details!$L:$L,Overview!E$2) -> 1 | F78: =+COUNTIFS(details!$B:$B,Overview!$B75,details!$L:$L,Overview!F$2) -> 1 | G78: =+COUNTIFS(details!$B:$B,Overview!$B75,details!$L:$L,Overview!G$2) -> 1 | H78: =+R78+W78-Q78 -> 1 | I78: =+COUNTIFS(details!$B:$B,Overview!$B75,details!$L:$L,Overview!I$2) -> 1 | J78: =+COUNTIFS(details!$B:$B,Overview!$B75,details!$L:$L,Overview!J$2) -> 1 | K78: =+COUNTIFS(details!$B:$B,Overview!$B75,details!$L:$L,Overview!K$2) -> 1 | L78: =+COUNTIFS(details!$B:$B,Overview!$B75,details!$L:$L,Overview!L$2) -> 1 | M78: =+COUNTIFS(details!$B:$B,Overview!$B75,details!$L:$L,Overview!M$2) -> 1 | N78: =+COUNTIFS(details!$B:$B,Overview!$B75,details!$L:$L,Overview!N$2) -> 1 | P78: =+COUNTIFS(details!$B:$B,Overview!$B75,details!$L:$L,Overview!G$2,details!$K:$K,"<="&Settings!$C$4) -> 1 | Q78: =+COUNTIFS(details!$B:$B,Overview!$B75,details!$L:$L,Overview!Q$2,details!$K:$K,"<="&Settings!$C$4) -> 1 | R78: =+COUNTIFS(details!$B:$B,Overview!$B75,details!$L:$L,Overview!I$2,details!$K:$K,"<="&Settings!$C$4) -> 1 | S78: 0% | T78: 0% | V78: 1 | W78: =+COUNTIFS(details!$B:$B,Overview!$B75,details!$L:$L,Overview!W$2) -> 1 | X78: 1 | Y78: 0% | Z78: 0%
B80: =+masterfile!B11 -> Trade fair
B81: Costs | D81: =+SUMIFS(details!$G:$G,details!$B:$B,Overview!$B80,details!$L:$L,Overview!D$2) -> 200 | E81: =+SUMIFS(details!$G:$G,details!$B:$B,Overview!$B80,details!$L:$L,Overview!E$2) -> 200 | F81: =+SUMIFS(details!$G:$G,details!$B:$B,Overview!$B80,details!$L:$L,Overview!F$2) -> 200 | G81: =+SUMIFS(details!$G:$G,details!$B:$B,Overview!$B80,details!$L:$L,Overview!G$2) -> 200 | H81: =+R81+W81-Q81 -> 200 | I81: =+SUMIFS(details!$F:$F,details!$B:$B,Overview!$B80,details!$L:$L,Overview!I$2) -> 200 | J81: =+SUMIFS(details!$F:$F,details!$B:$B,Overview!$B80,details!$L:$L,Overview!J$2) -> 200 | K81: =+SUMIFS(details!$F:$F,details!$B:$B,Overview!$B80,details!$L:$L,Overview!K$2) -> 200 | L81: =+SUMIFS(details!$F:$F,details!$B:$B,Overview!$B80,details!$L:$L,Overview!L$2) -> 200 | M81: =+SUMIFS(details!$F:$F,details!$B:$B,Overview!$B80,details!$L:$L,Overview!M$2) -> 200 | N81: =+SUMIFS(details!$F:$F,details!$B:$B,Overview!$B80,details!$L:$L,Overview!N$2) -> 200 | P81: =+SUMIFS(details!$G:$G,details!$B:$B,Overview!$B80,details!$L:$L,Overview!P$2,details!$K:$K,"<="&Settings!$C$4) -> 200 | Q81: =+SUMIFS(details!$F:$F,details!$B:$B,Overview!$B80,details!$L:$L,Overview!Q$2,details!$K:$K,"<="&Settings!$C$4) -> 200 | R81: =+SUMIFS(details!$G:$G,details!$B:$B,Overview!$B80,details!$L:$L,Overview!R$2,details!$K:$K,"<="&Settings!$C$4) -> 200 | S81: =IFERROR(R81/Q81-1,"n/a") -> 0% | T81: =IFERROR(R81/P81-1,"n/a") -> 0% | V81: =+G81 -> 200 | W81: =+SUMIFS(details!$F:$F,details!$B:$B,Overview!$B80,details!$L:$L,Overview!W$2) -> 200 | X81: =+H81 -> 200 | Y81: =IFERROR(X81/W81-1,"n/a") -> 0% | Z81: =IFERROR(X81/V81-1,"n/a") -> 0%
B82: Revenue | D82: =+SUMIFS(details!$I:$I,details!$B:$B,Overview!$B80,details!$L:$L,Overview!D$2) -> 75 | E82: =+SUMIFS(details!$I:$I,details!$B:$B,Overview!$B80,details!$L:$L,Overview!E$2) -> 75 | F82: =+SUMIFS(details!$I:$I,details!$B:$B,Overview!$B80,details!$L:$L,Overview!F$2) -> 75 | G82: =+SUMIFS(details!$I:$I,details!$B:$B,Overview!$B80,details!$L:$L,Overview!G$2) -> 75 | H82: =+R82+W82-Q82 -> 75 | I82: =+SUMIFS(details!$H:$H,details!$B:$B,Overview!$B80,details!$L:$L,Overview!I$2) -> 75 | J82: =+SUMIFS(details!$H:$H,details!$B:$B,Overview!$B80,details!$L:$L,Overview!J$2) -> 75 | K82: =+SUMIFS(details!$H:$H,details!$B:$B,Overview!$B80,details!$L:$L,Overview!K$2) -> 75 | L82: =+SUMIFS(details!$H:$H,details!$B:$B,Overview!$B80,details!$L:$L,Overview!L$2) -> 75 | M82: =+SUMIFS(details!$H:$H,details!$B:$B,Overview!$B80,details!$L:$L,Overview!M$2) -> 75 | N82: =+SUMIFS(details!$H:$H,details!$B:$B,Overview!$B80,details!$L:$L,Overview!N$2) -> 75 | P82: =+SUMIFS(details!$I:$I,details!$B:$B,Overview!$B80,details!$L:$L,Overview!P$2,details!$K:$K,"<="&Settings!$C$4) -> 75 | Q82: =+SUMIFS(details!$H:$H,details!$B:$B,Overview!$B80,details!$L:$L,Overview!Q$2,details!$K:$K,"<="&Settings!$C$4) -> 75 | R82: =+SUMIFS(details!$I:$I,details!$B:$B,Overview!$B80,details!$L:$L,Overview!R$2,details!$K:$K,"<="&Settings!$C$4) -> 75 | S82: 0% | T82: 0% | V82: 75 | W82: =+SUMIFS(details!$H:$H,details!$B:$B,Overview!$B80,details!$L:$L,Overview!W$2) -> 75 | X82: 75 | Y82: 0% | Z82: 0%
B83: Project count | D83: =+COUNTIFS(details!$B:$B,Overview!$B80,details!$L:$L,Overview!D$2) -> 2 | E83: =+COUNTIFS(details!$B:$B,Overview!$B80,details!$L:$L,Overview!E$2) -> 2 | F83: =+COUNTIFS(details!$B:$B,Overview!$B80,details!$L:$L,Overview!F$2) -> 2 | G83: =+COUNTIFS(details!$B:$B,Overview!$B80,details!$L:$L,Overview!G$2) -> 2 | H83: =+R83+W83-Q83 -> 2 | I83: =+COUNTIFS(details!$B:$B,Overview!$B80,details!$L:$L,Overview!I$2) -> 2 | J83: =+COUNTIFS(details!$B:$B,Overview!$B80,details!$L:$L,Overview!J$2) -> 2 | K83: =+COUNTIFS(details!$B:$B,Overview!$B80,details!$L:$L,Overview!K$2) -> 2 | L83: =+COUNTIFS(details!$B:$B,Overview!$B80,details!$L:$L,Overview!L$2) -> 2 | M83: =+COUNTIFS(details!$B:$B,Overview!$B80,details!$L:$L,Overview!M$2) -> 2 | N83: =+COUNTIFS(details!$B:$B,Overview!$B80,details!$L:$L,Overview!N$2) -> 2 | P83: =+COUNTIFS(details!$B:$B,Overview!$B80,details!$L:$L,Overview!G$2,details!$K:$K,"<="&Settings!$C$4) -> 2 | Q83: =+COUNTIFS(details!$B:$B,Overview!$B80,details!$L:$L,Overview!Q$2,details!$K:$K,"<="&Settings!$C$4) -> 2 | R83: =+COUNTIFS(details!$B:$B,Overview!$B80,details!$L:$L,Overview!I$2,details!$K:$K,"<="&Settings!$C$4) -> 2 | S83: 0% | T83: 0% | V83: 2 | W83: =+COUNTIFS(details!$B:$B,Overview!$B80,details!$L:$L,Overview!W$2) -> 2 | X83: 2 | Y83: 0% | Z83: 0%
B85: =+masterfile!B12 -> Seminar
B86: Costs | D86: =+SUMIFS(details!$G:$G,details!$B:$B,Overview!$B85,details!$L:$L,Overview!D$2) -> 400 | E86: =+SUMIFS(details!$G:$G,details!$B:$B,Overview!$B85,details!$L:$L,Overview!E$2) -> 400 | F86: =+SUMIFS(details!$G:$G,details!$B:$B,Overview!$B85,details!$L:$L,Overview!F$2) -> 400 | G86: =+SUMIFS(details!$G:$G,details!$B:$B,Overview!$B85,details!$L:$L,Overview!G$2) -> 400 | H86: =+R86+W86-Q86 -> 400 | I86: =+SUMIFS(details!$F:$F,details!$B:$B,Overview!$B85,details!$L:$L,Overview!I$2) -> 400 | J86: =+SUMIFS(details!$F:$F,details!$B:$B,Overview!$B85,details!$L:$L,Overview!J$2) -> 400 | K86: =+SUMIFS(details!$F:$F,details!$B:$B,Overview!$B85,details!$L:$L,Overview!K$2) -> 400 | L86: =+SUMIFS(details!$F:$F,details!$B:$B,Overview!$B85,details!$L:$L,Overview!L$2) -> 400 | M86: =+SUMIFS(details!$F:$F,details!$B:$B,Overview!$B85,details!$L:$L,Overview!M$2) -> 400 | N86: =+SUMIFS(details!$F:$F,details!$B:$B,Overview!$B85,details!$L:$L,Overview!N$2) -> 400 | P86: =+SUMIFS(details!$G:$G,details!$B:$B,Overview!$B85,details!$L:$L,Overview!P$2,details!$K:$K,"<="&Settings!$C$4) -> 400 | Q86: =+SUMIFS(details!$F:$F,details!$B:$B,Overview!$B85,details!$L:$L,Overview!Q$2,details!$K:$K,"<="&Settings!$C$4) -> 400 | R86: =+SUMIFS(details!$G:$G,details!$B:$B,Overview!$B85,details!$L:$L,Overview!R$2,details!$K:$K,"<="&Settings!$C$4) -> 400 | S86: =IFERROR(R86/Q86-1,"n/a") -> 0% | T86: =IFERROR(R86/P86-1,"n/a") -> 0% | V86: =+G86 -> 400 | W86: =+SUMIFS(details!$F:$F,details!$B:$B,Overview!$B85,details!$L:$L,Overview!W$2) -> 400 | X86: =+H86 -> 400 | Y86: =IFERROR(X86/W86-1,"n/a") -> 0% | Z86: =IFERROR(X86/V86-1,"n/a") -> 0%
B87: Revenue | D87: =+SUMIFS(details!$I:$I,details!$B:$B,Overview!$B85,details!$L:$L,Overview!D$2) -> 700 | E87: =+SUMIFS(details!$I:$I,details!$B:$B,Overview!$B85,details!$L:$L,Overview!E$2) -> 700 | F87: =+SUMIFS(details!$I:$I,details!$B:$B,Overview!$B85,details!$L:$L,Overview!F$2) -> 700 | G87: =+SUMIFS(details!$I:$I,details!$B:$B,Overview!$B85,details!$L:$L,Overview!G$2) -> 700 | H87: =+R87+W87-Q87 -> 700 | I87: =+SUMIFS(details!$H:$H,details!$B:$B,Overview!$B85,details!$L:$L,Overview!I$2) -> 700 | J87: =+SUMIFS(details!$H:$H,details!$B:$B,Overview!$B85,details!$L:$L,Overview!J$2) -> 700 | K87: =+SUMIFS(details!$H:$H,details!$B:$B,Overview!$B85,details!$L:$L,Overview!K$2) -> 700 | L87: =+SUMIFS(details!$H:$H,details!$B:$B,Overview!$B85,details!$L:$L,Overview!L$2) -> 700 | M87: =+SUMIFS(details!$H:$H,details!$B:$B,Overview!$B85,details!$L:$L,Overview!M$2) -> 700 | N87: =+SUMIFS(details!$H:$H,details!$B:$B,Overview!$B85,details!$L:$L,Overview!N$2) -> 700 | P87: =+SUMIFS(details!$I:$I,details!$B:$B,Overview!$B85,details!$L:$L,Overview!P$2,details!$K:$K,"<="&Settings!$C$4) -> 700 | Q87: =+SUMIFS(details!$H:$H,details!$B:$B,Overview!$B85,details!$L:$L,Overview!Q$2,details!$K:$K,"<="&Settings!$C$4) -> 700 | R87: =+SUMIFS(details!$I:$I,details!$B:$B,Overview!$B85,details!$L:$L,Overview!R$2,details!$K:$K,"<="&Settings!$C$4) -> 700 | S87: 0% | T87: 0% | V87: 700 | W87: =+SUMIFS(details!$H:$H,details!$B:$B,Overview!$B85,details!$L:$L,Overview!W$2) -> 700 | X87: 700 | Y87: 0% | Z87: 0%
B88: Project count | D88: =+COUNTIFS(details!$B:$B,Overview!$B85,details!$L:$L,Overview!D$2) -> 4 | E88: =+COUNTIFS(details!$B:$B,Overview!$B85,details!$L:$L,Overview!E$2) -> 4 | F88: =+COUNTIFS(details!$B:$B,Overview!$B85,details!$L:$L,Overview!F$2) -> 4 | G88: =+COUNTIFS(details!$B:$B,Overview!$B85,details!$L:$L,Overview!G$2) -> 4 | H88: =+R88+W88-Q88 -> 4 | I88: =+COUNTIFS(details!$B:$B,Overview!$B85,details!$L:$L,Overview!I$2) -> 4 | J88: =+COUNTIFS(details!$B:$B,Overview!$B85,details!$L:$L,Overview!J$2) -> 4 | K88: =+COUNTIFS(details!$B:$B,Overview!$B85,details!$L:$L,Overview!K$2) -> 4 | L88: =+COUNTIFS(details!$B:$B,Overview!$B85,details!$L:$L,Overview!L$2) -> 4 | M88: =+COUNTIFS(details!$B:$B,Overview!$B85,details!$L:$L,Overview!M$2) -> 4 | N88: =+COUNTIFS(details!$B:$B,Overview!$B85,details!$L:$L,Overview!N$2) -> 4 | P88: =+COUNTIFS(details!$B:$B,Overview!$B85,details!$L:$L,Overview!G$2,details!$K:$K,"<="&Settings!$C$4) -> 4 | Q88: =+COUNTIFS(details!$B:$B,Overview!$B85,details!$L:$L,Overview!Q$2,details!$K:$K,"<="&Settings!$C$4) -> 4 | R88: =+COUNTIFS(details!$B:$B,Overview!$B85,details!$L:$L,Overview!I$2,details!$K:$K,"<="&Settings!$C$4) -> 4 | S88: 0% | T88: 0% | V88: 4 | W88: =+COUNTIFS(details!$B:$B,Overview!$B85,details!$L:$L,Overview!W$2) -> 4 | X88: 4 | Y88: 0% | Z88: 0%
B90: Total Types
B91: Costs | D91: =+D36+D41+D46+D51+D56+D61+D66+D71+D76+D81+D86 -> 1,617 | E91: =+E36+E41+E46+E51+E56+E61+E66+E71+E76+E81+E86 -> 1,617 | F91: 1,617 | G91: 1,617 | H91: 1,617 | I91: 1,617 | J91: 1,617 | K91: 1,617 | L91: 1,617 | M91: =+M36+M41+M46+M51+M56+M61+M66+M71+M76+M81+M86 -> 1,617 | N91: 1,617 | P91: =+P36+P41+P46+P51+P56+P61+P66+P71+P76+P81+P86 -> 1,617 | Q91: 1,592 | R91: 1,617 | S91: =IFERROR(R91/Q91-1,"n/a") -> 2% | T91: =IFERROR(R91/P91-1,"n/a") -> 0% | V91: =+V36+V41+V46+V51+V56+V61+V66+V71+V76+V81+V86 -> 1,617 | W91: 1,592 | X91: =+X36+X41+X46+X51+X56+X61+X66+X71+X76+X81+X86 -> 1,617 | Y91: =IFERROR(X91/W91-1,"n/a") -> 2% | Z91: =IFERROR(X91/V91-1,"n/a") -> 0%
B92: Revenue | D92: =+D37+D42+D47+D52+D57+D62+D67+D72+D77+D82+D87 -> 9,055 | E92: 9,055 | F92: 9,055 | G92: 9,055 | H92: 9,060 | I92: 9,055 | J92: 9,055 | K92: 9,055 | L92: 9,055 | M92: =+M37+M42+M47+M52+M57+M62+M67+M72+M77+M82+M87 -> 9,055 | N92: 9,055 | P92: =+P37+P42+P47+P52+P57+P62+P67+P72+P77+P82+P87 -> 9,055 | Q92: 9,055 | R92: 9,060 | S92: 0% | T92: 0% | V92: =+V37+V42+V47+V52+V57+V62+V67+V72+V77+V82+V87 -> 9,055 | W92: 9,055 | X92: =+X37+X42+X47+X52+X57+X62+X67+X72+X77+X82+X87 -> 9,060 | Y92: 0% | Z92: 0%
B93: Project count | D93: =+D38+D43+D48+D53+D58+D63+D68+D73+D78+D83+D88 -> 61 | E93: =+E38+E43+E48+E53+E58+E63+E68+E73+E78+E83+E88 -> 61 | F93: 61 | G93: 61 | H93: 61 | I93: 61 | J93: 61 | K93: 61 | L93: 61 | M93: =+M38+M43+M48+M53+M58+M63+M68+M73+M78+M83+M88 -> 61 | N93: 61 | P93: =+P38+P43+P48+P53+P58+P63+P68+P73+P78+P83+P88 -> 61 | Q93: 61 | R93: 61 | S93: 0% | T93: 0% | V93: =+V38+V43+V48+V53+V58+V63+V68+V73+V78+V83+V88 -> 61 | W93: 61 | X93: 61 | Y93: 0% | Z93: 0%
B94: ROI | D94: =+(D92-D91)/D91 -> 460% | E94: =+(E92-E91)/E91 -> 460% | F94: 460% | G94: 460% | H94: 460% | I94: 460% | J94: 460% | K94: 460% | L94: 460% | M94: =+(M92-M91)/M91 -> 460% | N94: 460% | P94: 460% | Q94: 469% | R94: 460% | V94: =+(V92-V91)/V91 -> 460% | W94: 469% | X94: 460%
B96: Segment
B98: Segment 1
B99: Costs | D99: =+SUMIFS(details!$G:$G,details!$C:$C,Overview!$B98,details!$L:$L,Overview!D$2) -> 1,065 | E99: =+SUMIFS(details!$G:$G,details!$C:$C,Overview!$B98,details!$L:$L,Overview!E$2) -> 1,065 | F99: =+SUMIFS(details!$G:$G,details!$C:$C,Overview!$B98,details!$L:$L,Overview!F$2) -> 1,065 | G99: =+SUMIFS(details!$G:$G,details!$C:$C,Overview!$B98,details!$L:$L,Overview!G$2) -> 1,065 | H99: =+R99+W99-Q99 -> 1,065 | I99: =+SUMIFS(details!$F:$F,details!$C:$C,Overview!$B98,details!$L:$L,Overview!I$2) -> 1,065 | J99: =+SUMIFS(details!$F:$F,details!$C:$C,Overview!$B98,details!$L:$L,Overview!J$2) -> 1,065 | K99: =+SUMIFS(details!$F:$F,details!$C:$C,Overview!$B98,details!$L:$L,Overview!K$2) -> 1,065 | L99: =+SUMIFS(details!$F:$F,details!$C:$C,Overview!$B98,details!$L:$L,Overview!L$2) -> 1,065 | M99: =+SUMIFS(details!$F:$F,details!$C:$C,Overview!$B98,details!$L:$L,Overview!M$2) -> 1,065 | N99: =+SUMIFS(details!$F:$F,details!$C:$C,Overview!$B98,details!$L:$L,Overview!N$2) -> 1,065 | P99: =+SUMIFS(details!$G:$G,details!$C:$C,Overview!$B98,details!$L:$L,Overview!P$2,details!$K:$K,"<="&Settings!$C$4) -> 1,065 | Q99: =+SUMIFS(details!$F:$F,details!$C:$C,Overview!$B98,details!$L:$L,Overview!Q$2,details!$K:$K,"<="&Settings!$C$4) -> 1,040 | R99: =+SUMIFS(details!$G:$G,details!$C:$C,Overview!$B98,details!$L:$L,Overview!R$2,details!$K:$K,"<="&Settings!$C$4) -> 1,065 | S99: =IFERROR(R99/Q99-1,"n/a") -> 2% | T99: =IFERROR(R99/P99-1,"n/a") -> 0% | V99: =+G99 -> 1,065 | W99: =+SUMIFS(details!$F:$F,details!$C:$C,Overview!$B98,details!$L:$L,Overview!W$2) -> 1,040 | X99: =+H99 -> 1,065 | Y99: =IFERROR(X99/W99-1,"n/a") -> 2% | Z99: =IFERROR(X99/V99-1,"n/a") -> 0%
B100: Revenue | D100: =+SUMIFS(details!$I:$I,details!$C:$C,Overview!$B98,details!$L:$L,Overview!D$2) -> 6,985 | E100: =+SUMIFS(details!$I:$I,details!$C:$C,Overview!$B98,details!$L:$L,Overview!E$2) -> 6,985 | F100: =+SUMIFS(details!$I:$I,details!$C:$C,Overview!$B98,details!$L:$L,Overview!F$2) -> 6,985 | G100: =+SUMIFS(details!$I:$I,details!$C:$C,Overview!$B98,details!$L:$L,Overview!G$2) -> 6,985 | H100: =+R100+W100-Q100 -> 6,990 | I100: =+SUMIFS(details!$H:$H,details!$C:$C,Overview!$B98,details!$L:$L,Overview!I$2) -> 6,985 | J100: =+SUMIFS(details!$H:$H,details!$C:$C,Overview!$B98,details!$L:$L,Overview!J$2) -> 6,985 | K100: =+SUMIFS(details!$H:$H,details!$C:$C,Overview!$B98,details!$L:$L,Overview!K$2) -> 6,985 | L100: =+SUMIFS(details!$H:$H,details!$C:$C,Overview!$B98,details!$L:$L,Overview!L$2) -> 6,985 | M100: =+SUMIFS(details!$H:$H,details!$C:$C,Overview!$B98,details!$L:$L,Overview!M$2) -> 6,985 | N100: =+SUMIFS(details!$H:$H,details!$C:$C,Overview!$B98,details!$L:$L,Overview!N$2) -> 6,985 | P100: =+SUMIFS(details!$I:$I,details!$C:$C,Overview!$B98,details!$L:$L,Overview!P$2,details!$K:$K,"<="&Settings!$C$4) -> 6,985 | Q100: =+SUMIFS(details!$H:$H,details!$C:$C,Overview!$B98,details!$L:$L,Overview!Q$2,details!$K:$K,"<="&Settings!$C$4) -> 6,985 | R100: =+SUMIFS(details!$I:$I,details!$C:$C,Overview!$B98,details!$L:$L,Overview!R$2,details!$K:$K,"<="&Settings!$C$4) -> 6,990 | S100: 0% | T100: 0% | V100: 6,985 | W100: =+SUMIFS(details!$H:$H,details!$C:$C,Overview!$B98,details!$L:$L,Overview!W$2) -> 6,985 | X100: 6,990 | Y100: 0% | Z100: 0%
B101: Project count | D101: =+COUNTIFS(details!$C:$C,Overview!$B98,details!$L:$L,Overview!D$2) -> 18 | E101: =+COUNTIFS(details!$C:$C,Overview!$B98,details!$L:$L,Overview!E$2) -> 18 | F101: =+COUNTIFS(details!$C:$C,Overview!$B98,details!$L:$L,Overview!F$2) -> 18 | G101: =+COUNTIFS(details!$C:$C,Overview!$B98,details!$L:$L,Overview!G$2) -> 18 | H101: =+R101+W101-Q101 -> 18 | I101: =+COUNTIFS(details!$C:$C,Overview!$B98,details!$L:$L,Overview!I$2) -> 18 | J101: =+COUNTIFS(details!$C:$C,Overview!$B98,details!$L:$L,Overview!J$2) -> 18 | K101: =+COUNTIFS(details!$C:$C,Overview!$B98,details!$L:$L,Overview!K$2) -> 18 | L101: =+COUNTIFS(details!$C:$C,Overview!$B98,details!$L:$L,Overview!L$2) -> 18 | M101: =+COUNTIFS(details!$C:$C,Overview!$B98,details!$L:$L,Overview!M$2) -> 18 | N101: =+COUNTIFS(details!$C:$C,Overview!$B98,details!$L:$L,Overview!N$2) -> 18 | P101: =+COUNTIFS(details!$C:$C,Overview!$B98,details!$L:$L,Overview!G$2,details!$K:$K,"<="&Settings!$C$4) -> 18 | Q101: =+COUNTIFS(details!$C:$C,Overview!$B98,details!$L:$L,Overview!Q$2,details!$K:$K,"<="&Settings!$C$4) -> 18 | R101: =+COUNTIFS(details!$C:$C,Overview!$B98,details!$L:$L,Overview!I$2,details!$K:$K,"<="&Settings!$C$4) -> 18 | S101: 0% | T101: 0% | V101: 18 | W101: =+COUNTIFS(details!$C:$C,Overview!$B98,details!$L:$L,Overview!W$2) -> 18 | X101: 18 | Y101: 0% | Z101: 0%
B103: Segment 2
B104: Costs | D104: =+SUMIFS(details!$G:$G,details!$C:$C,Overview!$B103,details!$L:$L,Overview!D$2) -> 380 | E104: =+SUMIFS(details!$G:$G,details!$C:$C,Overview!$B103,details!$L:$L,Overview!E$2) -> 380 | F104: =+SUMIFS(details!$G:$G,details!$C:$C,Overview!$B103,details!$L:$L,Overview!F$2) -> 380 | G104: =+SUMIFS(details!$G:$G,details!$C:$C,Overview!$B103,details!$L:$L,Overview!G$2) -> 380 | H104: =+R104+W104-Q104 -> 380 | I104: =+SUMIFS(details!$F:$F,details!$C:$C,Overview!$B103,details!$L:$L,Overview!I$2) -> 380 | J104: =+SUMIFS(details!$F:$F,details!$C:$C,Overview!$B103,details!$L:$L,Overview!J$2) -> 380 | K104: =+SUMIFS(details!$F:$F,details!$C:$C,Overview!$B103,details!$L:$L,Overview!K$2) -> 380 | L104: =+SUMIFS(details!$F:$F,details!$C:$C,Overview!$B103,details!$L:$L,Overview!L$2) -> 380 | M104: =+SUMIFS(details!$F:$F,details!$C:$C,Overview!$B103,details!$L:$L,Overview!M$2) -> 380 | N104: =+SUMIFS(details!$F:$F,details!$C:$C,Overview!$B103,details!$L:$L,Overview!N$2) -> 380 | P104: =+SUMIFS(details!$G:$G,details!$C:$C,Overview!$B103,details!$L:$L,Overview!P$2,details!$K:$K,"<="&Settings!$C$4) -> 380 | Q104: =+SUMIFS(details!$F:$F,details!$C:$C,Overview!$B103,details!$L:$L,Overview!Q$2,details!$K:$K,"<="&Settings!$C$4) -> 380 | R104: =+SUMIFS(details!$G:$G,details!$C:$C,Overview!$B103,details!$L:$L,Overview!R$2,details!$K:$K,"<="&Settings!$C$4) -> 380 | S104: =IFERROR(R104/Q104-1,"n/a") -> 0% | T104: =IFERROR(R104/P104-1,"n/a") -> 0% | V104: =+G104 -> 380 | W104: =+SUMIFS(details!$F:$F,details!$C:$C,Overview!$B103,details!$L:$L,Overview!W$2) -> 380 | X104: =+H104 -> 380 | Y104: =IFERROR(X104/W104-1,"n/a") -> 0% | Z104: =IFERROR(X104/V104-1,"n/a") -> 0%
B105: Revenue | D105: =+SUMIFS(details!$I:$I,details!$C:$C,Overview!$B103,details!$L:$L,Overview!D$2) -> 1,700 | E105: =+SUMIFS(details!$I:$I,details!$C:$C,Overview!$B103,details!$L:$L,Overview!E$2) -> 1,700 | F105: =+SUMIFS(details!$I:$I,details!$C:$C,Overview!$B103,details!$L:$L,Overview!F$2) -> 1,700 | G105: =+SUMIFS(details!$I:$I,details!$C:$C,Overview!$B103,details!$L:$L,Overview!G$2) -> 1,700 | H105: =+R105+W105-Q105 -> 1,700 | I105: =+SUMIFS(details!$H:$H,details!$C:$C,Overview!$B103,details!$L:$L,Overview!I$2) -> 1,700 | J105: =+SUMIFS(details!$H:$H,details!$C:$C,Overview!$B103,details!$L:$L,Overview!J$2) -> 1,700 | K105: =+SUMIFS(details!$H:$H,details!$C:$C,Overview!$B103,details!$L:$L,Overview!K$2) -> 1,700 | L105: =+SUMIFS(details!$H:$H,details!$C:$C,Overview!$B103,details!$L:$L,Overview!L$2) -> 1,700 | M105: =+SUMIFS(details!$H:$H,details!$C:$C,Overview!$B103,details!$L:$L,Overview!M$2) -> 1,700 | N105: =+SUMIFS(details!$H:$H,details!$C:$C,Overview!$B103,details!$L:$L,Overview!N$2) -> 1,700 | P105: =+SUMIFS(details!$I:$I,details!$C:$C,Overview!$B103,details!$L:$L,Overview!P$2,details!$K:$K,"<="&Settings!$C$4) -> 1,700 | Q105: =+SUMIFS(details!$H:$H,details!$C:$C,Overview!$B103,details!$L:$L,Overview!Q$2,details!$K:$K,"<="&Settings!$C$4) -> 1,700 | R105: =+SUMIFS(details!$I:$I,details!$C:$C,Overview!$B103,details!$L:$L,Overview!R$2,details!$K:$K,"<="&Settings!$C$4) -> 1,700 | S105: 0% | T105: 0% | V105: 1,700 | W105: =+SUMIFS(details!$H:$H,details!$C:$C,Overview!$B103,details!$L:$L,Overview!W$2) -> 1,700 | X105: 1,700 | Y105: 0% | Z105: 0%
B106: Project count | D106: =+COUNTIFS(details!$C:$C,Overview!$B103,details!$L:$L,Overview!D$2) -> 18 | E106: =+COUNTIFS(details!$C:$C,Overview!$B103,details!$L:$L,Overview!E$2) -> 18 | F106: =+COUNTIFS(details!$C:$C,Overview!$B103,details!$L:$L,Overview!F$2) -> 18 | G106: =+COUNTIFS(details!$C:$C,Overview!$B103,details!$L:$L,Overview!G$2) -> 18 | H106: =+R106+W106-Q106 -> 18 | I106: =+COUNTIFS(details!$C:$C,Overview!$B103,details!$L:$L,Overview!I$2) -> 18 | J106: =+COUNTIFS(details!$C:$C,Overview!$B103,details!$L:$L,Overview!J$2) -> 18 | K106: =+COUNTIFS(details!$C:$C,Overview!$B103,details!$L:$L,Overview!K$2) -> 18 | L106: =+COUNTIFS(details!$C:$C,Overview!$B103,details!$L:$L,Overview!L$2) -> 18 | M106: =+COUNTIFS(details!$C:$C,Overview!$B103,details!$L:$L,Overview!M$2) -> 18 | N106: =+COUNTIFS(details!$C:$C,Overview!$B103,details!$L:$L,Overview!N$2) -> 18 | P106: =+COUNTIFS(details!$C:$C,Overview!$B103,details!$L:$L,Overview!G$2,details!$K:$K,"<="&Settings!$C$4) -> 18 | Q106: =+COUNTIFS(details!$C:$C,Overview!$B103,details!$L:$L,Overview!Q$2,details!$K:$K,"<="&Settings!$C$4) -> 18 | R106: =+COUNTIFS(details!$C:$C,Overview!$B103,details!$L:$L,Overview!I$2,details!$K:$K,"<="&Settings!$C$4) -> 18 | S106: 0% | T106: 0% | V106: 18 | W106: =+COUNTIFS(details!$C:$C,Overview!$B103,details!$L:$L,Overview!W$2) -> 18 | X106: 18 | Y106: 0% | Z106: 0%
B108: Segment 3
B109: Costs | D109: =+SUMIFS(details!$G:$G,details!$C:$C,Overview!$B108,details!$L:$L,Overview!D$2) -> 160 | E109: =+SUMIFS(details!$G:$G,details!$C:$C,Overview!$B108,details!$L:$L,Overview!E$2) -> 160 | F109: =+SUMIFS(details!$G:$G,details!$C:$C,Overview!$B108,details!$L:$L,Overview!F$2) -> 160 | G109: =+SUMIFS(details!$G:$G,details!$C:$C,Overview!$B108,details!$L:$L,Overview!G$2) -> 160 | H109: =+R109+W109-Q109 -> 160 | I109: =+SUMIFS(details!$F:$F,details!$C:$C,Overview!$B108,details!$L:$L,Overview!I$2) -> 160 | J109: =+SUMIFS(details!$F:$F,details!$C:$C,Overview!$B108,details!$L:$L,Overview!J$2) -> 160 | K109: =+SUMIFS(details!$F:$F,details!$C:$C,Overview!$B108,details!$L:$L,Overview!K$2) -> 160 | L109: =+SUMIFS(details!$F:$F,details!$C:$C,Overview!$B108,details!$L:$L,Overview!L$2) -> 160 | M109: =+SUMIFS(details!$F:$F,details!$C:$C,Overview!$B108,details!$L:$L,Overview!M$2) -> 160 | N109: =+SUMIFS(details!$F:$F,details!$C:$C,Overview!$B108,details!$L:$L,Overview!N$2) -> 160 | P109: =+SUMIFS(details!$G:$G,details!$C:$C,Overview!$B108,details!$L:$L,Overview!P$2,details!$K:$K,"<="&Settings!$C$4) -> 160 | Q109: =+SUMIFS(details!$F:$F,details!$C:$C,Overview!$B108,details!$L:$L,Overview!Q$2,details!$K:$K,"<="&Settings!$C$4) -> 160 | R109: =+SUMIFS(details!$G:$G,details!$C:$C,Overview!$B108,details!$L:$L,Overview!R$2,details!$K:$K,"<="&Settings!$C$4) -> 160 | S109: =IFERROR(R109/Q109-1,"n/a") -> 0% | T109: =IFERROR(R109/P109-1,"n/a") -> 0% | V109: =+G109 -> 160 | W109: =+SUMIFS(details!$F:$F,details!$C:$C,Overview!$B108,details!$L:$L,Overview!W$2) -> 160 | X109: =+H109 -> 160 | Y109: =IFERROR(X109/W109-1,"n/a") -> 0% | Z109: =IFERROR(X109/V109-1,"n/a") -> 0%
B110: Revenue | D110: =+SUMIFS(details!$I:$I,details!$C:$C,Overview!$B108,details!$L:$L,Overview!D$2) -> 360 | E110: =+SUMIFS(details!$I:$I,details!$C:$C,Overview!$B108,details!$L:$L,Overview!E$2) -> 360 | F110: =+SUMIFS(details!$I:$I,details!$C:$C,Overview!$B108,details!$L:$L,Overview!F$2) -> 360 | G110: =+SUMIFS(details!$I:$I,details!$C:$C,Overview!$B108,details!$L:$L,Overview!G$2) -> 360 | H110: =+R110+W110-Q110 -> 360 | I110: =+SUMIFS(details!$H:$H,details!$C:$C,Overview!$B108,details!$L:$L,Overview!I$2) -> 360 | J110: =+SUMIFS(details!$H:$H,details!$C:$C,Overview!$B108,details!$L:$L,Overview!J$2) -> 360 | K110: =+SUMIFS(details!$H:$H,details!$C:$C,Overview!$B108,details!$L:$L,Overview!K$2) -> 360 | L110: =+SUMIFS(details!$H:$H,details!$C:$C,Overview!$B108,details!$L:$L,Overview!L$2) -> 360 | M110: =+SUMIFS(details!$H:$H,details!$C:$C,Overview!$B108,details!$L:$L,Overview!M$2) -> 360 | N110: =+SUMIFS(details!$H:$H,details!$C:$C,Overview!$B108,details!$L:$L,Overview!N$2) -> 360 | P110: =+SUMIFS(details!$I:$I,details!$C:$C,Overview!$B108,details!$L:$L,Overview!P$2,details!$K:$K,"<="&Settings!$C$4) -> 360 | Q110: =+SUMIFS(details!$H:$H,details!$C:$C,Overview!$B108,details!$L:$L,Overview!Q$2,details!$K:$K,"<="&Settings!$C$4) -> 360 | R110: =+SUMIFS(details!$I:$I,details!$C:$C,Overview!$B108,details!$L:$L,Overview!R$2,details!$K:$K,"<="&Settings!$C$4) -> 360 | S110: 0% | T110: 0% | V110: 360 | W110: =+SUMIFS(details!$H:$H,details!$C:$C,Overview!$B108,details!$L:$L,Overview!W$2) -> 360 | X110: 360 | Y110: 0% | Z110: 0%
B111: Project count | D111: =+COUNTIFS(details!$C:$C,Overview!$B108,details!$L:$L,Overview!D$2) -> 13 | E111: =+COUNTIFS(details!$C:$C,Overview!$B108,details!$L:$L,Overview!E$2) -> 13 | F111: =+COUNTIFS(details!$C:$C,Overview!$B108,details!$L:$L,Overview!F$2) -> 13 | G111: =+COUNTIFS(details!$C:$C,Overview!$B108,details!$L:$L,Overview!G$2) -> 13 | H111: =+R111+W111-Q111 -> 13 | I111: =+COUNTIFS(details!$C:$C,Overview!$B108,details!$L:$L,Overview!I$2) -> 13 | J111: =+COUNTIFS(details!$C:$C,Overview!$B108,details!$L:$L,Overview!J$2) -> 13 | K111: =+COUNTIFS(details!$C:$C,Overview!$B108,details!$L:$L,Overview!K$2) -> 13 | L111: =+COUNTIFS(details!$C:$C,Overview!$B108,details!$L:$L,Overview!L$2) -> 13 | M111: =+COUNTIFS(details!$C:$C,Overview!$B108,details!$L:$L,Overview!M$2) -> 13 | N111: =+COUNTIFS(details!$C:$C,Overview!$B108,details!$L:$L,Overview!N$2) -> 13 | P111: =+COUNTIFS(details!$C:$C,Overview!$B108,details!$L:$L,Overview!G$2,details!$K:$K,"<="&Settings!$C$4) -> 13 | Q111: =+COUNTIFS(details!$C:$C,Overview!$B108,details!$L:$L,Overview!Q$2,details!$K:$K,"<="&Settings!$C$4) -> 13 | R111: =+COUNTIFS(details!$C:$C,Overview!$B108,details!$L:$L,Overview!I$2,details!$K:$K,"<="&Settings!$C$4) -> 13 | S111: 0% | T111: 0% | V111: 13 | W111: =+COUNTIFS(details!$C:$C,Overview!$B108,details!$L:$L,Overview!W$2) -> 13 | X111: 13 | Y111: 0% | Z111: 0%
B113: Segment 4
B114: Costs | D114: =+SUMIFS(details!$G:$G,details!$C:$C,Overview!$B113,details!$L:$L,Overview!D$2) -> 6 | E114: =+SUMIFS(details!$G:$G,details!$C:$C,Overview!$B113,details!$L:$L,Overview!E$2) -> 6 | F114: =+SUMIFS(details!$G:$G,details!$C:$C,Overview!$B113,details!$L:$L,Overview!F$2) -> 6 | G114: =+SUMIFS(details!$G:$G,details!$C:$C,Overview!$B113,details!$L:$L,Overview!G$2) -> 6 | H114: =+R114+W114-Q114 -> 6 | I114: =+SUMIFS(details!$F:$F,details!$C:$C,Overview!$B113,details!$L:$L,Overview!I$2) -> 6 | J114: =+SUMIFS(details!$F:$F,details!$C:$C,Overview!$B113,details!$L:$L,Overview!J$2) -> 6 | K114: =+SUMIFS(details!$F:$F,details!$C:$C,Overview!$B113,details!$L:$L,Overview!K$2) -> 6 | L114: =+SUMIFS(details!$F:$F,details!$C:$C,Overview!$B113,details!$L:$L,Overview!L$2) -> 6 | M114: =+SUMIFS(details!$F:$F,details!$C:$C,Overview!$B113,details!$L:$L,Overview!M$2) -> 6 | N114: =+SUMIFS(details!$F:$F,details!$C:$C,Overview!$B113,details!$L:$L,Overview!N$2) -> 6 | P114: =+SUMIFS(details!$G:$G,details!$C:$C,Overview!$B113,details!$L:$L,Overview!P$2,details!$K:$K,"<="&Settings!$C$4) -> 6 | Q114: =+SUMIFS(details!$F:$F,details!$C:$C,Overview!$B113,details!$L:$L,Overview!Q$2,details!$K:$K,"<="&Settings!$C$4) -> 6 | R114: =+SUMIFS(details!$G:$G,details!$C:$C,Overview!$B113,details!$L:$L,Overview!R$2,details!$K:$K,"<="&Settings!$C$4) -> 6 | S114: =IFERROR(R114/Q114-1,"n/a") -> 0% | T114: =IFERROR(R114/P114-1,"n/a") -> 0% | V114: =+G114 -> 6 | W114: =+SUMIFS(details!$F:$F,details!$C:$C,Overview!$B113,details!$L:$L,Overview!W$2) -> 6 | X114: =+H114 -> 6 | Y114: =IFERROR(X114/W114-1,"n/a") -> 0% | Z114: =IFERROR(X114/V114-1,"n/a") -> 0%
B115: Revenue | D115: =+SUMIFS(details!$I:$I,details!$C:$C,Overview!$B113,details!$L:$L,Overview!D$2) -> 5 | E115: =+SUMIFS(details!$I:$I,details!$C:$C,Overview!$B113,details!$L:$L,Overview!E$2) -> 5 | F115: =+SUMIFS(details!$I:$I,details!$C:$C,Overview!$B113,details!$L:$L,Overview!F$2) -> 5 | G115: =+SUMIFS(details!$I:$I,details!$C:$C,Overview!$B113,details!$L:$L,Overview!G$2) -> 5 | H115: =+R115+W115-Q115 -> 5 | I115: =+SUMIFS(details!$H:$H,details!$C:$C,Overview!$B113,details!$L:$L,Overview!I$2) -> 5 | J115: =+SUMIFS(details!$H:$H,details!$C:$C,Overview!$B113,details!$L:$L,Overview!J$2) -> 5 | K115: =+SUMIFS(details!$H:$H,details!$C:$C,Overview!$B113,details!$L:$L,Overview!K$2) -> 5 | L115: =+SUMIFS(details!$H:$H,details!$C:$C,Overview!$B113,details!$L:$L,Overview!L$2) -> 5 | M115: =+SUMIFS(details!$H:$H,details!$C:$C,Overview!$B113,details!$L:$L,Overview!M$2) -> 5 | N115: =+SUMIFS(details!$H:$H,details!$C:$C,Overview!$B113,details!$L:$L,Overview!N$2) -> 5 | P115: =+SUMIFS(details!$I:$I,details!$C:$C,Overview!$B113,details!$L:$L,Overview!P$2,details!$K:$K,"<="&Settings!$C$4) -> 5 | Q115: =+SUMIFS(details!$H:$H,details!$C:$C,Overview!$B113,details!$L:$L,Overview!Q$2,details!$K:$K,"<="&Settings!$C$4) -> 5 | R115: =+SUMIFS(details!$I:$I,details!$C:$C,Overview!$B113,details!$L:$L,Overview!R$2,details!$K:$K,"<="&Settings!$C$4) -> 5 | S115: 0% | T115: 0% | V115: 5 | W115: =+SUMIFS(details!$H:$H,details!$C:$C,Overview!$B113,details!$L:$L,Overview!W$2) -> 5 | X115: 5 | Y115: 0% | Z115: 0%
B116: Project count | D116: =+COUNTIFS(details!$C:$C,Overview!$B113,details!$L:$L,Overview!D$2) -> 6 | E116: =+COUNTIFS(details!$C:$C,Overview!$B113,details!$L:$L,Overview!E$2) -> 6 | F116: =+COUNTIFS(details!$C:$C,Overview!$B113,details!$L:$L,Overview!F$2) -> 6 | G116: =+COUNTIFS(details!$C:$C,Overview!$B113,details!$L:$L,Overview!G$2) -> 6 | H116: =+R116+W116-Q116 -> 6 | I116: =+COUNTIFS(details!$C:$C,Overview!$B113,details!$L:$L,Overview!I$2) -> 6 | J116: =+COUNTIFS(details!$C:$C,Overview!$B113,details!$L:$L,Overview!J$2) -> 6 | K116: =+COUNTIFS(details!$C:$C,Overview!$B113,details!$L:$L,Overview!K$2) -> 6 | L116: =+COUNTIFS(details!$C:$C,Overview!$B113,details!$L:$L,Overview!L$2) -> 6 | M116: =+COUNTIFS(details!$C:$C,Overview!$B113,details!$L:$L,Overview!M$2) -> 6 | N116: =+COUNTIFS(details!$C:$C,Overview!$B113,details!$L:$L,Overview!N$2) -> 6 | P116: =+COUNTIFS(details!$C:$C,Overview!$B113,details!$L:$L,Overview!G$2,details!$K:$K,"<="&Settings!$C$4) -> 6 | Q116: =+COUNTIFS(details!$C:$C,Overview!$B113,details!$L:$L,Overview!Q$2,details!$K:$K,"<="&Settings!$C$4) -> 6 | R116: =+COUNTIFS(details!$C:$C,Overview!$B113,details!$L:$L,Overview!I$2,details!$K:$K,"<="&Settings!$C$4) -> 6 | S116: 0% | T116: 0% | V116: 6 | W116: =+COUNTIFS(details!$C:$C,Overview!$B113,details!$L:$L,Overview!W$2) -> 6 | X116: 6 | Y116: 0% | Z116: 0%
B118: Segment 5
B119: Costs | D119: =+SUMIFS(details!$G:$G,details!$C:$C,Overview!$B118,details!$L:$L,Overview!D$2) -> 6 | E119: =+SUMIFS(details!$G:$G,details!$C:$C,Overview!$B118,details!$L:$L,Overview!E$2) -> 6 | F119: =+SUMIFS(details!$G:$G,details!$C:$C,Overview!$B118,details!$L:$L,Overview!F$2) -> 6 | G119: =+SUMIFS(details!$G:$G,details!$C:$C,Overview!$B118,details!$L:$L,Overview!G$2) -> 6 | H119: =+R119+W119-Q119 -> 6 | I119: =+SUMIFS(details!$F:$F,details!$C:$C,Overview!$B118,details!$L:$L,Overview!I$2) -> 6 | J119: =+SUMIFS(details!$F:$F,details!$C:$C,Overview!$B118,details!$L:$L,Overview!J$2) -> 6 | K119: =+SUMIFS(details!$F:$F,details!$C:$C,Overview!$B118,details!$L:$L,Overview!K$2) -> 6 | L119: =+SUMIFS(details!$F:$F,details!$C:$C,Overview!$B118,details!$L:$L,Overview!L$2) -> 6 | M119: =+SUMIFS(details!$F:$F,details!$C:$C,Overview!$B118,details!$L:$L,Overview!M$2) -> 6 | N119: =+SUMIFS(details!$F:$F,details!$C:$C,Overview!$B118,details!$L:$L,Overview!N$2) -> 6 | P119: =+SUMIFS(details!$G:$G,details!$C:$C,Overview!$B118,details!$L:$L,Overview!P$2,details!$K:$K,"<="&Settings!$C$4) -> 6 | Q119: =+SUMIFS(details!$F:$F,details!$C:$C,Overview!$B118,details!$L:$L,Overview!Q$2,details!$K:$K,"<="&Settings!$C$4) -> 6 | R119: =+SUMIFS(details!$G:$G,details!$C:$C,Overview!$B118,details!$L:$L,Overview!R$2,details!$K:$K,"<="&Settings!$C$4) -> 6 | S119: =IFERROR(R119/Q119-1,"n/a") -> 0% | T119: =IFERROR(R119/P119-1,"n/a") -> 0% | V119: =+G119 -> 6 | W119: =+SUMIFS(details!$F:$F,details!$C:$C,Overview!$B118,details!$L:$L,Overview!W$2) -> 6 | X119: =+H119 -> 6 | Y119: =IFERROR(X119/W119-1,"n/a") -> 0% | Z119: =IFERROR(X119/V119-1,"n/a") -> 0%
B120: Revenue | D120: =+SUMIFS(details!$I:$I,details!$C:$C,Overview!$B118,details!$L:$L,Overview!D$2) -> 5 | E120: =+SUMIFS(details!$I:$I,details!$C:$C,Overview!$B118,details!$L:$L,Overview!E$2) -> 5 | F120: =+SUMIFS(details!$I:$I,details!$C:$C,Overview!$B118,details!$L:$L,Overview!F$2) -> 5 | G120: =+SUMIFS(details!$I:$I,details!$C:$C,Overview!$B118,details!$L:$L,Overview!G$2) -> 5 | H120: =+R120+W120-Q120 -> 5 | I120: =+SUMIFS(details!$H:$H,details!$C:$C,Overview!$B118,details!$L:$L,Overview!I$2) -> 5 | J120: =+SUMIFS(details!$H:$H,details!$C:$C,Overview!$B118,details!$L:$L,Overview!J$2) -> 5 | K120: =+SUMIFS(details!$H:$H,details!$C:$C,Overview!$B118,details!$L:$L,Overview!K$2) -> 5 | L120: =+SUMIFS(details!$H:$H,details!$C:$C,Overview!$B118,details!$L:$L,Overview!L$2) -> 5 | M120: =+SUMIFS(details!$H:$H,details!$C:$C,Overview!$B118,details!$L:$L,Overview!M$2) -> 5 | N120: =+SUMIFS(details!$H:$H,details!$C:$C,Overview!$B118,details!$L:$L,Overview!N$2) -> 5 | P120: =+SUMIFS(details!$I:$I,details!$C:$C,Overview!$B118,details!$L:$L,Overview!P$2,details!$K:$K,"<="&Settings!$C$4) -> 5 | Q120: =+SUMIFS(details!$H:$H,details!$C:$C,Overview!$B118,details!$L:$L,Overview!Q$2,details!$K:$K,"<="&Settings!$C$4) -> 5 | R120: =+SUMIFS(details!$I:$I,details!$C:$C,Overview!$B118,details!$L:$L,Overview!R$2,details!$K:$K,"<="&Settings!$C$4) -> 5 | S120: 0% | T120: 0% | V120: 5 | W120: =+SUMIFS(details!$H:$H,details!$C:$C,Overview!$B118,details!$L:$L,Overview!W$2) -> 5 | X120: 5 | Y120: 0% | Z120: 0%
B121: Project count | D121: =+COUNTIFS(details!$C:$C,Overview!$B118,details!$L:$L,Overview!D$2) -> 6 | E121: =+COUNTIFS(details!$C:$C,Overview!$B118,details!$L:$L,Overview!E$2) -> 6 | F121: =+COUNTIFS(details!$C:$C,Overview!$B118,details!$L:$L,Overview!F$2) -> 6 | G121: =+COUNTIFS(details!$C:$C,Overview!$B118,details!$L:$L,Overview!G$2) -> 6 | H121: =+R121+W121-Q121 -> 6 | I121: =+COUNTIFS(details!$C:$C,Overview!$B118,details!$L:$L,Overview!I$2) -> 6 | J121: =+COUNTIFS(details!$C:$C,Overview!$B118,details!$L:$L,Overview!J$2) -> 6 | K121: =+COUNTIFS(details!$C:$C,Overview!$B118,details!$L:$L,Overview!K$2) -> 6 | L121: =+COUNTIFS(details!$C:$C,Overview!$B118,details!$L:$L,Overview!L$2) -> 6 | M121: =+COUNTIFS(details!$C:$C,Overview!$B118,details!$L:$L,Overview!M$2) -> 6 | N121: =+COUNTIFS(details!$C:$C,Overview!$B118,details!$L:$L,Overview!N$2) -> 6 | P121: =+COUNTIFS(details!$C:$C,Overview!$B118,details!$L:$L,Overview!G$2,details!$K:$K,"<="&Settings!$C$4) -> 6 | Q121: =+COUNTIFS(details!$C:$C,Overview!$B118,details!$L:$L,Overview!Q$2,details!$K:$K,"<="&Settings!$C$4) -> 6 | R121: =+COUNTIFS(details!$C:$C,Overview!$B118,details!$L:$L,Overview!I$2,details!$K:$K,"<="&Settings!$C$4) -> 6 | S121: 0% | T121: 0% | V121: 6 | W121: =+COUNTIFS(details!$C:$C,Overview!$B118,details!$L:$L,Overview!W$2) -> 6 | X121: 6 | Y121: 0% | Z121: 0%
B123: Total Segments
B124: Costs | D124: =+D99+D104+D109+D114+D119 -> 1,617 | E124: =+E99+E104+E109+E114+E119 -> 1,617 | F124: 1,617 | G124: 1,617 | H124: 1,617 | I124: 1,617 | J124: 1,617 | K124: 1,617 | L124: 1,617 | M124: =+M99+M104+M109+M114+M119 -> 1,617 | N124: 1,617 | P124: =+P99+P104+P109+P114+P119 -> 1,617 | Q124: 1,592 | R124: 1,617 | S124: =IFERROR(R124/Q124-1,"n/a") -> 2% | T124: =IFERROR(R124/P124-1,"n/a") -> 0% | V124: =+V99+V104+V109+V114+V119 -> 1,617 | W124: 1,592 | X124: =+X99+X104+X109+X114+X119 -> 1,617 | Y124: =IFERROR(X124/W124-1,"n/a") -> 2% | Z124: =IFERROR(X124/V124-1,"n/a") -> 0%
B125: Revenue | D125: =+D100+D105+D110+D115+D120 -> 9,055 | E125: =+E100+E105+E110+E115+E120 -> 9,055 | F125: 9,055 | G125: 9,055 | H125: 9,060 | I125: 9,055 | J125: 9,055 | K125: 9,055 | L125: 9,055 | M125: =+M100+M105+M110+M115+M120 -> 9,055 | N125: 9,055 | P125: =+P100+P105+P110+P115+P120 -> 9,055 | Q125: 9,055 | R125: 9,060 | S125: 0% | T125: 0% | V125: =+V100+V105+V110+V115+V120 -> 9,055 | W125: 9,055 | X125: =+X100+X105+X110+X115+X120 -> 9,060 | Y125: 0% | Z125: 0%
B126: Project count | D126: =+D101+D106+D111+D116+D121 -> 61 | E126: =+E101+E106+E111+E116+E121 -> 61 | F126: 61 | G126: 61 | H126: 61 | I126: 61 | J126: 61 | K126: 61 | L126: 61 | M126: =+M101+M106+M111+M116+M121 -> 61 | N126: 61 | P126: =+P101+P106+P111+P116+P121 -> 61 | Q126: 61 | R126: 61 | S126: 0% | T126: 0% | V126: =+V101+V106+V111+V116+V121 -> 61 | W126: 61 | X126: =+X101+X106+X111+X116+X121 -> 61 | Y126: 0% | Z126: 0%
B127: ROI | D127: =+(D125-D124)/D124 -> 460% | E127: =+(E125-E124)/E124 -> 460% | F127: 460% | G127: 460% | H127: 460% | I127: 460% | J127: 460% | K127: 460% | L127: 460% | M127: =+(M125-M124)/M124 -> 460% | N127: 460% | P127: 460% | Q127: 469% | R127: 460% | V127: =+(V125-V124)/V124 -> 460% | W127: 469% | X127: 460%

Sheet details
A1: Channel | B1: Media Type | C1: Segment | D1: Description | E1: Quantity | F1: Expected Costs | G1: Actual Costs | H1: Expected Income | I1: Actual Income | J1: Date | K1: Month | L1: Year | M1: Details
A2: Online | B2: Social media | C2: Segment 1 | E2: 1 | F2: 50 | G2: 50 | H2: 5 | I2: 5 | J2: 2018-07-01 | K2: =+MONTH(J2) -> 7 | L2: =+YEAR(J2) -> 2018
A3: Online | B3: Social media | C3: Segment 2 | E3: 1 | F3: 10 | G3: 10 | H3: 10 | I3: 10 | J3: 2018-07-01 | K3: =+MONTH(J3) -> 7 | L3: =+YEAR(J3) -> 2018
A4: Online | B4: Social media | C4: Segment 3 | E4: 1 | F4: 5 | G4: 5 | H4: 0 | I4: 0 | J4: 2018-07-01 | K4: 7 | L4: 2018
A5: Online | B5: Social media | C5: Segment 4 | E5: 1 | F5: 1 | G5: 1 | H5: 0 | I5: 0 | J5: 2018-07-01 | K5: 7 | L5: 2018
A6: Online | B6: Social media | C6: Segment 5 | E6: 1 | F6: 1 | G6: 1 | H6: 0 | I6: 0 | J6: 2018-07-01 | K6: 7 | L6: 2018
A7: Online | B7: Website | C7: Segment 1 | E7: 1 | F7: 150 | G7: 150 | H7: 5,000 | I7: 5,000 | J7: 2018-07-01 | K7: 7 | L7: 2018
A8: Online | B8: Website | C8: Segment 2 | E8: 1 | F8: 50 | G8: 50 | H8: 1,000 | I8: 1,000 | J8: 2018-07-01 | K8: =+MONTH(J8) -> 7 | L8: =+YEAR(J8) -> 2018
A9: Online | B9: Website | C9: Segment 3 | E9: 1 | F9: 10 | G9: 10 | H9: 50 | I9: 50 | J9: 2018-07-01 | K9: 7 | L9: 2018
A10: Online | B10: Website | C10: Segment 4 | E10: 1 | F10: 1 | G10: 1 | H10: 5 | I10: 5 | J10: 2018-07-01 | K10: 7 | L10: 2018
A11: Online | B11: Website | C11: Segment 5 | E11: 1 | F11: 1 | G11: 1 | H11: 5 | I11: 5 | J11: 2018-07-01 | K11: 7 | L11: 2018
A12: Online | B12: Search engine | C12: Segment 1 | E12: 1 | F12: 50 | G12: 50 | H12: 1,000 | I12: 1,000 | J12: 2018-07-01 | K12: 7 | L12: 2018
A13: Online | B13: Search engine | C13: Segment 2 | E13: 1 | F13: 25 | G13: 25 | H13: 250 | I13: 250 | J13: 2018-07-01 | K13: 7 | L13: 2018
A14: Online | B14: Search engine | C14: Segment 3 | E14: 1 | F14: 5 | G14: 5 | H14: 5 | I14: 5 | J14: 2018-07-01 | K14: 7 | L14: 2018
A15: Online | B15: Article | C15: Segment 1 | E15: 1 | F15: 50 | G15: 50 | H15: 20 | I15: 20 | J15: 2018-07-01 | K15: 7 | L15: 2018
A16: Print | B16: Article | C16: Segment 1 | E16: 1 | F16: 150 | G16: 150 | H16: 10 | I16: 10 | J16: 2018-07-01 | K16: 7 | L16: 2018
A17: Online | B17: Article | C17: Segment 2 | E17: 1 | F17: 25 | G17: 25 | H17: 10 | I17: 10 | J17: 2018-07-01 | K17: 7 | L17: 2018
A18: Print | B18: Article | C18: Segment 2 | E18: 1 | F18: 30 | G18: 30 | H18: 5 | I18: 5 | J18: 2018-07-01 | K18: 7 | L18: 2018
A19: Online | B19: Article | C19: Segment 3 | E19: 1 | F19: 10 | G19: 10 | H19: 5 | I19: 5 | J19: 2018-07-01 | K19: 7 | L19: 2018
A20: Online | B20: Other | C20: Segment 1 | E20: 1 | F20: 1 | G20: 1 | H20: 0 | I20: 0 | J20: 2018-07-01 | K20: 7 | L20: 2018
A21: Print | B21: Other | C21: Segment 1 | E21: 1 | F21: 1 | G21: 1 | H21: 0 | I21: 0 | J21: 2018-07-01 | K21: 7 | L21: 2018
A22: In person | B22: Other | C22: Segment 1 | E22: 1 | F22: 1 | G22: 1 | H22: 0 | I22: 0 | J22: 2018-07-01 | K22: 7 | L22: 2018
A23: Merchandise | B23: Other | C23: Segment 1 | E23: 1 | F23: 1 | G23: 1 | H23: 0 | I23: 0 | J23: 2018-07-01 | K23: 7 | L23: 2018
A24: Online | B24: Other | C24: Segment 2 | E24: 1 | F24: 1 | G24: 1 | H24: 0 | I24: 0 | J24: 2018-07-01 | K24: 7 | L24: 2018
A25: Print | B25: Other | C25: Segment 2 | E25: 1 | F25: 1 | G25: 1 | H25: 0 | I25: 0 | J25: 2018-07-01 | K25: 7 | L25: 2018
A26: In person | B26: Other | C26: Segment 2 | E26: 1 | F26: 1 | G26: 1 | H26: 0 | I26: 0 | J26: 2018-07-01 | K26: 7 | L26: 2018
A27: Merchandise | B27: Other | C27: Segment 2 | E27: 1 | F27: 1 | G27: 1 | H27: 0 | I27: 0 | J27: 2018-07-01 | K27: 7 | L27: 2018
A28: Online | B28: Other | C28: Segment 3 | E28: 1 | F28: 1 | G28: 1 | H28: 0 | I28: 0 | J28: 2018-07-01 | K28: =+MONTH(J28) -> 7 | L28: =+YEAR(J28) -> 2018
A29: Print | B29: Other | C29: Segment 3 | E29: 1 | F29: 1 | G29: 1 | H29: 0 | I29: 0 | J29: 2018-07-01 | K29: 7 | L29: 2018
A30: In person | B30: Other | C30: Segment 3 | E30: 1 | F30: 1 | G30: 1 | H30: 0 | I30: 0 | J30: 2018-07-01 | K30: 7 | L30: 2018
A31: Merchandise | B31: Other | C31: Segment 3 | E31: 1 | F31: 1 | G31: 1 | H31: 0 | I31: 0 | J31: 2018-07-01 | K31: 7 | L31: 2018
A32: Online | B32: Other | C32: Segment 4 | E32: 1 | F32: 1 | G32: 1 | H32: 0 | I32: 0 | J32: 2018-07-01 | K32: 7 | L32: 2018
A33: Print | B33: Other | C33: Segment 4 | E33: 1 | F33: 1 | G33: 1 | H33: 0 | I33: 0 | J33: 2018-07-01 | K33: 7 | L33: 2018
A34: In person | B34: Other | C34: Segment 4 | E34: 1 | F34: 1 | G34: 1 | H34: 0 | I34: 0 | J34: 2018-07-01 | K34: 7 | L34: 2018
A35: Merchandise | B35: Other | C35: Segment 4 | E35: 1 | F35: 1 | G35: 1 | H35: 0 | I35: 0 | J35: 2018-07-01 | K35: 7 | L35: 2018
A36: Online | B36: Other | C36: Segment 5 | E36: 1 | F36: 1 | G36: 1 | H36: 0 | I36: 0 | J36: 2018-07-01 | K36: 7 | L36: 2018
A37: Print | B37: Other | C37: Segment 5 | E37: 1 | F37: 1 | G37: 1 | H37: 0 | I37: 0 | J37: 2018-07-01 | K37: 7 | L37: 2018
A38: In person | B38: Other | C38: Segment 5 | E38: 1 | F38: 1 | G38: 1 | H38: 0 | I38: 0 | J38: 2018-07-01 | K38: 7 | L38: 2018
A39: Merchandise | B39: Other | C39: Segment 5 | E39: 1 | F39: 1 | G39: 1 | H39: 0 | I39: 0 | J39: 2018-07-01 | K39: 7 | L39: 2018
A40: Online | B40: Newsletter | C40: Segment 1 | E40: 1 | F40: 10 | G40: 10 | H40: 0 | I40: 0 | J40: 2018-07-01 | K40: 7 | L40: 2018
A41: Print | B41: Newsletter | C41: Segment 1 | E41: 1 | F41: 1 | G41: 1 | H41: 0 | I41: 0 | J41: 2018-07-01 | K41: 7 | L41: 2018
A42: Online | B42: Newsletter | C42: Segment 2 | E42: 1 | F42: 5 | G42: 5 | H42: 0 | I42: 0 | J42: 2018-07-01 | K42: 7 | L42: 2018
A43: Print | B43: Newsletter | C43: Segment 2 | E43: 1 | F43: 1 | G43: 1 | H43: 0 | I43: 0 | J43: 2018-07-01 | K43: 7 | L43: 2018
A44: Online | B44: Newsletter | C44: Segment 3 | E44: 1 | F44: 5 | G44: 5 | H44: 0 | I44: 0 | J44: 2018-07-01 | K44: 7 | L44: 2018
A45: Print | B45: Newsletter | C45: Segment 3 | E45: 1 | F45: 1 | G45: 1 | H45: 0 | I45: 0 | J45: 2018-07-01 | K45: 7 | L45: 2018
A46: Online | B46: Catalog | C46: Segment 1 | E46: 1 | F46: 50 | G46: 50 | H46: 100 | I46: 100 | J46: 2018-07-01 | K46: 7 | L46: 2018
A47: Print | B47: Catalog | C47: Segment 1 | E47: 1 | F47: 25 | G47: 25 | H47: 100 | I47: 100 | J47: 2018-07-01 | K47: 7 | L47: 2018
A48: Online | B48: Catalog | C48: Segment 2 | E48: 1 | F48: 25 | G48: 25 | H48: 50 | I48: 50 | J48: 2018-07-01 | K48: 7 | L48: 2018
A49: Print | B49: Catalog | C49: Segment 2 | E49: 1 | F49: 15 | G49: 15 | H49: 50 | I49: 50 | J49: 2018-07-01 | K49: 7 | L49: 2018
A50: Online | B50: Catalog | C50: Segment 3 | E50: 1 | F50: 10 | G50: 10 | H50: 25 | I50: 25 | J50: 2018-07-01 | K50: 7 | L50: 2018
A51: Online | B51: Flyer | C51: Segment 1 | E51: 1 | F51: 50 | G51: 50 | H51: 100 | I51: 100 | J51: 2018-07-01 | K51: 7 | L51: 2018
A52: Print | B52: Flyer | C52: Segment 1 | E52: 1 | F52: 25 | G52: 25 | H52: 100 | I52: 100 | J52: 2018-07-01 | K52: 7 | L52: 2018
A53: Online | B53: Flyer | C53: Segment 2 | E53: 1 | F53: 25 | G53: 25 | H53: 50 | I53: 50 | J53: 2018-07-01 | K53: 7 | L53: 2018
A54: Print | B54: Flyer | C54: Segment 2 | E54: 1 | F54: 15 | G54: 15 | H54: 50 | I54: 50 | J54: 2018-07-01 | K54: 7 | L54: 2018
A55: Online | B55: Flyer | C55: Segment 3 | E55: 1 | F55: 10 | G55: 10 | H55: 25 | I55: 25 | J55: 2018-07-01 | K55: 7 | L55: 2018
A56: Online | B56: Merchandise | C56: Segment 3 | E56: 1 | F56: 100 | G56: 100 | H56: 250 | I56: 250 | J56: 2018-07-01 | K56: =+MONTH(J56) -> 7 | L56: =+YEAR(J56) -> 2018
A57: In person | B57: Trade fair | C57: Segment 1 | E57: 1 | F57: 150 | G57: 150 | H57: 50 | I57: 50 | J57: 2018-07-01 | K57: 7 | L57: 2018
A58: In person | B58: Trade fair | C58: Segment 2 | E58: 1 | F58: 50 | G58: 50 | H58: 25 | I58: 25 | J58: 2018-07-01 | K58: 7 | L58: 2018
A59: Online | B59: Seminar | C59: Segment 1 | E59: 1 | F59: 150 | G59: 150 | H59: 250 | I59: 250 | J59: 2018-07-01 | K59: 7 | L59: 2018
A60: In person | B60: Seminar | C60: Segment 1 | E60: 1 | F60: 150 | G60: 150 | H60: 250 | I60: 250 | J60: 2018-07-01 | K60: 7 | L60: 2018
A61: Online | B61: Seminar | C61: Segment 2 | E61: 1 | F61: 50 | G61: 50 | H61: 100 | I61: 100 | J61: 2018-07-01 | K61: 7 | L61: 2018
A62: In person | B62: Seminar | C62: Segment 2 | E62: 1 | F62: 50 | G62: 50 | H62: 100 | I62: 100 | J62: 2018-07-01 | K62: 7 | L62: 2018
A63: Online | B63: Social media | C63: Segment 1 | E63: 1 | F63: 50 | G63: 50 | H63: 5 | I63: 5 | J63: 2019-07-01 | K63: =+MONTH(J63) -> 7 | L63: =+YEAR(J63) -> 2019
A64: Online | B64: Social media | C64: Segment 2 | E64: 1 | F64: 10 | G64: 10 | H64: 10 | I64: 10 | J64: 2019-07-01 | K64: =+MONTH(J64) -> 7 | L64: =+YEAR(J64) -> 2019
A65: Online | B65: Social media | C65: Segment 3 | E65: 1 | F65: 5 | G65: 5 | H65: 0 | I65: 0 | J65: 2019-07-01 | K65: 7 | L65: 2019
A66: Online | B66: Social media | C66: Segment 4 | E66: 1 | F66: 1 | G66: 1 | H66: 0 | I66: 0 | J66: 2019-07-01 | K66: 7 | L66: 2019
A67: Online | B67: Social media | C67: Segment 5 | E67: 1 | F67: 1 | G67: 1 | H67: 0 | I67: 0 | J67: 2019-07-01 | K67: 7 | L67: 2019
A68: Online | B68: Website | C68: Segment 1 | E68: 1 | F68: 150 | G68: 150 | H68: 5,000 | I68: 5,000 | J68: 2019-07-01 | K68: 7 | L68: 2019
A69: Online | B69: Website | C69: Segment 2 | E69: 1 | F69: 50 | G69: 50 | H69: 1,000 | I69: 1,000 | J69: 2019-07-01 | K69: 7 | L69: 2019
A70: Online | B70: Website | C70: Segment 3 | E70: 1 | F70: 10 | G70: 10 | H70: 50 | I70: 50 | J70: 2019-07-01 | K70: 7 | L70: 2019
A71: Online | B71: Website | C71: Segment 4 | E71: 1 | F71: 1 | G71: 1 | H71: 5 | I71: 5 | J71: 2019-07-01 | K71: 7 | L71: 2019
A72: Online | B72: Website | C72: Segment 5 | E72: 1 | F72: 1 | G72: 1 | H72: 5 | I72: 5 | J72: 2019-07-01 | K72: 7 | L72: 2019
A73: Online | B73: Search engine | C73: Segment 1 | E73: 1 | F73: 50 | G73: 50 | H73: 1,000 | I73: 1,000 | J73: 2019-07-01 | K73: 7 | L73: 2019
A74: Online | B74: Search engine | C74: Segment 2 | E74: 1 | F74: 25 | G74: 25 | H74: 250 | I74: 250 | J74: 2019-07-01 | K74: 7 | L74: 2019
A75: Online | B75: Search engine | C75: Segment 3 | E75: 1 | F75: 5 | G75: 5 | H75: 5 | I75: 5 | J75: 2019-07-01 | K75: 7 | L75: 2019
A76: Online | B76: Article | C76: Segment 1 | E76: 1 | F76: 50 | G76: 50 | H76: 20 | I76: 20 | J76: 2019-07-01 | K76: 7 | L76: 2019
A77: Print | B77: Article | C77: Segment 1 | E77: 1 | F77: 150 | G77: 150 | H77: 10 | I77: 10 | J77: 2019-07-01 | K77: 7 | L77: 2019
A78: Online | B78: Article | C78: Segment 2 | E78: 1 | F78: 25 | G78: 25 | H78: 10 | I78: 10 | J78: 2019-07-01 | K78: 7 | L78: 2019
A79: Print | B79: Article | C79: Segment 2 | E79: 1 | F79: 30 | G79: 30 | H79: 5 | I79: 5 | J79: 2019-07-01 | K79: 7 | L79: 2019
A80: Online | B80: Article | C80: Segment 3 | E80: 1 | F80: 10 | G80: 10 | H80: 5 | I80: 5 | J80: 2019-07-01 | K80: 7 | L80: 2019
A81: Online | B81: Other | C81: Segment 1 | E81: 1 | F81: 1 | G81: 1 | H81: 0 | I81: 0 | J81: 2019-07-01 | K81: 7 | L81: 2019
A82: Print | B82: Other | C82: Segment 1 | E82: 1 | F82: 1 | G82: 1 | H82: 0 | I82: 0 | J82: 2019-07-01 | K82: 7 | L82: 2019
A83: In person | B83: Other | C83: Segment 1 | E83: 1 | F83: 1 | G83: 1 | H83: 0 | I83: 0 | J83: 2019-07-01 | K83: 7 | L83: 2019
A84: Merchandise | B84: Other | C84: Segment 1 | E84: 1 | F84: 1 | G84: 1 | H84: 0 | I84: 0 | J84: 2019-07-01 | K84: 7 | L84: 2019
A85: Online | B85: Other | C85: Segment 2 | E85: 1 | F85: 1 | G85: 1 | H85: 0 | I85: 0 | J85: 2019-07-01 | K85: 7 | L85: 2019
A86: Print | B86: Other | C86: Segment 2 | E86: 1 | F86: 1 | G86: 1 | H86: 0 | I86: 0 | J86: 2019-07-01 | K86: 7 | L86: 2019
A87: In person | B87: Other | C87: Segment 2 | E87: 1 | F87: 1 | G87: 1 | H87: 0 | I87: 0 | J87: 2019-07-01 | K87: 7 | L87: 2019
A88: Merchandise | B88: Other | C88: Segment 2 | E88: 1 | F88: 1 | G88: 1 | H88: 0 | I88: 0 | J88: 2019-07-01 | K88: 7 | L88: 2019
A89: Online | B89: Other | C89: Segment 3 | E89: 1 | F89: 1 | G89: 1 | H89: 0 | I89: 0 | J89: 2019-07-01 | K89: 7 | L89: 2019
A90: Print | B90: Other | C90: Segment 3 | E90: 1 | F90: 1 | G90: 1 | H90: 0 | I90: 0 | J90: 2019-07-01 | K90: 7 | L90: 2019
A91: In person | B91: Other | C91: Segment 3 | E91: 1 | F91: 1 | G91: 1 | H91: 0 | I91: 0 | J91: 2019-07-01 | K91: 7 | L91: 2019
A92: Merchandise | B92: Other | C92: Segment 3 | E92: 1 | F92: 1 | G92: 1 | H92: 0 | I92: 0 | J92: 2019-07-01 | K92: 7 | L92: 2019
A93: Online | B93: Other | C93: Segment 4 | E93: 1 | F93: 1 | G93: 1 | H93: 0 | I93: 0 | J93: 2019-07-01 | K93: 7 | L93: 2019
A94: Print | B94: Other | C94: Segment 4 | E94: 1 | F94: 1 | G94: 1 | H94: 0 | I94: 0 | J94: 2019-07-01 | K94: 7 | L94: 2019
A95: In person | B95: Other | C95: Segment 4 | E95: 1 | F95: 1 | G95: 1 | H95: 0 | I95: 0 | J95: 2019-07-01 | K95: 7 | L95: 2019
A96: Merchandise | B96: Other | C96: Segment 4 | E96: 1 | F96: 1 | G96: 1 | H96: 0 | I96: 0 | J96: 2019-07-01 | K96: 7 | L96: 2019
A97: Online | B97: Other | C97: Segment 5 | E97: 1 | F97: 1 | G97: 1 | H97: 0 | I97: 0 | J97: 2019-07-01 | K97: 7 | L97: 2019
A98: Print | B98: Other | C98: Segment 5 | E98: 1 | F98: 1 | G98: 1 | H98: 0 | I98: 0 | J98: 2019-07-01 | K98: 7 | L98: 2019
A99: In person | B99: Other | C99: Segment 5 | E99: 1 | F99: 1 | G99: 1 | H99: 0 | I99: 0 | J99: 2019-07-01 | K99: 7 | L99: 2019
A100: Merchandise | B100: Other | C100: Segment 5 | E100: 1 | F100: 1 | G100: 1 | H100: 0 | I100: 0 | J100: 2019-07-01 | K100: 7 | L100: 2019
A101: Online | B101: Newsletter | C101: Segment 1 | E101: 1 | F101: 10 | G101: 10 | H101: 0 | I101: 0 | J101: 2019-07-01 | K101: 7 | L101: 2019
A102: Print | B102: Newsletter | C102: Segment 1 | E102: 1 | F102: 1 | G102: 1 | H102: 0 | I102: 0 | J102: 2019-07-01 | K102: 7 | L102: 2019
A103: Online | B103: Newsletter | C103: Segment 2 | E103: 1 | F103: 5 | G103: 5 | H103: 0 | I103: 0 | J103: 2019-07-01 | K103: 7 | L103: 2019
A104: Print | B104: Newsletter | C104: Segment 2 | E104: 1 | F104: 1 | G104: 1 | H104: 0 | I104: 0 | J104: 2019-07-01 | K104: 7 | L104: 2019
A105: Online | B105: Newsletter | C105: Segment 3 | E105: 1 | F105: 5 | G105: 5 | H105: 0 | I105: 0 | J105: 2019-07-01 | K105: 7 | L105: 2019
A106: Print | B106: Newsletter | C106: Segment 3 | E106: 1 | F106: 1 | G106: 1 | H106: 0 | I106: 0 | J106: 2019-07-01 | K106: 7 | L106: 2019
A107: Online | B107: Catalog | C107: Segment 1 | E107: 1 | F107: 50 | G107: 50 | H107: 100 | I107: 100 | J107: 2019-07-01 | K107: 7 | L107: 2019
A108: Print | B108: Catalog | C108: Segment 1 | E108: 1 | F108: 25 | G108: 25 | H108: 100 | I108: 100 | J108: 2019-07-01 | K108: 7 | L108: 2019
A109: Online | B109: Catalog | C109: Segment 2 | E109: 1 | F109: 25 | G109: 25 | H109: 50 | I109: 50 | J109: 2019-07-01 | K109: 7 | L109: 2019
A110: Print | B110: Catalog | C110: Segment 2 | E110: 1 | F110: 15 | G110: 15 | H110: 50 | I110: 50 | J110: 2019-07-01 | K110: 7 | L110: 2019
A111: Online | B111: Catalog | C111: Segment 3 | E111: 1 | F111: 10 | G111: 10 | H111: 25 | I111: 25 | J111: 2019-07-01 | K111: 7 | L111: 2019
A112: Online | B112: Flyer | C112: Segment 1 | E112: 1 | F112: 50 | G112: 50 | H112: 100 | I112: 100 | J112: 2019-07-01 | K112: 7 | L112: 2019
A113: Print | B113: Flyer | C113: Segment 1 | E113: 1 | F113: 25 | G113: 25 | H113: 100 | I113: 100 | J113: 2019-07-01 | K113: 7 | L113: 2019
A114: Online | B114: Flyer | C114: Segment 2 | E114: 1 | F114: 25 | G114: 25 | H114: 50 | I114: 50 | J114: 2019-07-01 | K114: 7 | L114: 2019
A115: Print | B115: Flyer | C115: Segment 2 | E115: 1 | F115: 15 | G115: 15 | H115: 50 | I115: 50 | J115: 2019-07-01 | K115: 7 | L115: 2019
A116: Online | B116: Flyer | C116: Segment 3 | E116: 1 | F116: 10 | G116: 10 | H116: 25 | I116: 25 | J116: 2019-07-01 | K116: 7 | L116: 2019
A117: Online | B117: Merchandise | C117: Segment 3 | E117: 1 | F117: 100 | G117: 100 | H117: 250 | I117: 250 | J117: 2019-07-01 | K117: 7 | L117: 2019
A118: In person | B118: Trade fair | C118: Segment 1 | E118: 1 | F118: 150 | G118: 150 | H118: 50 | I118: 50 | J118: 2019-07-01 | K118: 7 | L118: 2019
A119: In person | B119: Trade fair | C119: Segment 2 | E119: 1 | F119: 50 | G119: 50 | H119: 25 | I119: 25 | J119: 2019-07-01 | K119: 7 | L119: 2019
A120: Online | B120: Seminar | C120: Segment 1 | E120: 1 | F120: 150 | G120: 150 | H120: 250 | I120: 250 | J120: 2019-07-01 | K120: 7 | L120: 2019
A121: In person | B121: Seminar | C121: Segment 1 | E121: 1 | F121: 150 | G121: 150 | H121: 250 | I121: 250 | J121: 2019-07-01 | K121: 7 | L121: 2019
A122: Online | B122: Seminar | C122: Segment 2 | E122: 1 | F122: 50 | G122: 50 | H122: 100 | I122: 100 | J122: 2019-07-01 | K122: 7 | L122: 2019
A123: In person | B123: Seminar | C123: Segment 2 | E123: 1 | F123: 50 | G123: 50 | H123: 100 | I123: 100 | J123: 2019-07-01 | K123: 7 | L123: 2019
A124: Online | B124: Social media | C124: Segment 1 | E124: 1 | F124: 50 | G124: 50 | H124: 5 | I124: 5 | J124: 2020-07-01 | K124: =+MONTH(J124) -> 7 | L124: =+YEAR(J124) -> 2020
A125: Online | B125: Social media | C125: Segment 2 | E125: 1 | F125: 10 | G125: 10 | H125: 10 | I125: 10 | J125: 2020-07-01 | K125: =+MONTH(J125) -> 7 | L125: =+YEAR(J125) -> 2020
A126: Online | B126: Social media | C126: Segment 3 | E126: 1 | F126: 5 | G126: 5 | H126: 0 | I126: 0 | J126: 2020-07-01 | K126: 7 | L126: 2020
A127: Online | B127: Social media | C127: Segment 4 | E127: 1 | F127: 1 | G127: 1 | H127: 0 | I127: 0 | J127: 2020-07-01 | K127: 7 | L127: 2020
A128: Online | B128: Social media | C128: Segment 5 | E128: 1 | F128: 1 | G128: 1 | H128: 0 | I128: 0 | J128: 2020-07-01 | K128: 7 | L128: 2020
A129: Online | B129: Website | C129: Segment 1 | E129: 1 | F129: 150 | G129: 150 | H129: 5,000 | I129: 5,000 | J129: 2020-07-01 | K129: 7 | L129: 2020
A130: Online | B130: Website | C130: Segment 2 | E130: 1 | F130: 50 | G130: 50 | H130: 1,000 | I130: 1,000 | J130: 2020-07-01 | K130: 7 | L130: 2020
A131: Online | B131: Website | C131: Segment 3 | E131: 1 | F131: 10 | G131: 10 | H131: 50 | I131: 50 | J131: 2020-07-01 | K131: 7 | L131: 2020
A132: Online | B132: Website | C132: Segment 4 | E132: 1 | F132: 1 | G132: 1 | H132: 5 | I132: 5 | J132: 2020-07-01 | K132: 7 | L132: 2020
A133: Online | B133: Website | C133: Segment 5 | E133: 1 | F133: 1 | G133: 1 | H133: 5 | I133: 5 | J133: 2020-07-01 | K133: 7 | L133: 2020
A134: Online | B134: Search engine | C134: Segment 1 | E134: 1 | F134: 50 | G134: 50 | H134: 1,000 | I134: 1,000 | J134: 2020-07-01 | K134: 7 | L134: 2020
A135: Online | B135: Search engine | C135: Segment 2 | E135: 1 | F135: 25 | G135: 25 | H135: 250 | I135: 250 | J135: 2020-07-01 | K135: 7 | L135: 2020
A136: Online | B136: Search engine | C136: Segment 3 | E136: 1 | F136: 5 | G136: 5 | H136: 5 | I136: 5 | J136: 2020-07-01 | K136: 7 | L136: 2020
A137: Online | B137: Article | C137: Segment 1 | E137: 1 | F137: 50 | G137: 50 | H137: 20 | I137: 20 | J137: 2020-07-01 | K137: 7 | L137: 2020
A138: Print | B138: Article | C138: Segment 1 | E138: 1 | F138: 150 | G138: 150 | H138: 10 | I138: 10 | J138: 2020-07-01 | K138: 7 | L138: 2020
A139: Online | B139: Article | C139: Segment 2 | E139: 1 | F139: 25 | G139: 25 | H139: 10 | I139: 10 | J139: 2020-07-01 | K139: 7 | L139: 2020
A140: Print | B140: Article | C140: Segment 2 | E140: 1 | F140: 30 | G140: 30 | H140: 5 | I140: 5 | J140: 2020-07-01 | K140: 7 | L140: 2020
A141: Online | B141: Article | C141: Segment 3 | E141: 1 | F141: 10 | G141: 10 | H141: 5 | I141: 5 | J141: 2020-07-01 | K141: 7 | L141: 2020
A142: Online | B142: Other | C142: Segment 1 | E142: 1 | F142: 1 | G142: 1 | H142: 0 | I142: 0 | J142: 2020-07-01 | K142: 7 | L142: 2020
A143: Print | B143: Other | C143: Segment 1 | E143: 1 | F143: 1 | G143: 1 | H143: 0 | I143: 0 | J143: 2020-07-01 | K143: 7 | L143: 2020
A144: In person | B144: Other | C144: Segment 1 | E144: 1 | F144: 1 | G144: 1 | H144: 0 | I144: 0 | J144: 2020-07-01 | K144: 7 | L144: 2020
A145: Merchandise | B145: Other | C145: Segment 1 | E145: 1 | F145: 1 | G145: 1 | H145: 0 | I145: 0 | J145: 2020-07-01 | K145: 7 | L145: 2020
A146: Online | B146: Other | C146: Segment 2 | E146: 1 | F146: 1 | G146: 1 | H146: 0 | I146: 0 | J146: 2020-07-01 | K146: 7 | L146: 2020
A147: Print | B147: Other | C147: Segment 2 | E147: 1 | F147: 1 | G147: 1 | H147: 0 | I147: 0 | J147: 2020-07-01 | K147: 7 | L147: 2020
A148: In person | B148: Other | C148: Segment 2 | E148: 1 | F148: 1 | G148: 1 | H148: 0 | I148: 0 | J148: 2020-07-01 | K148: 7 | L148: 2020
A149: Merchandise | B149: Other | C149: Segment 2 | E149: 1 | F149: 1 | G149: 1 | H149: 0 | I149: 0 | J149: 2020-07-01 | K149: 7 | L149: 2020
A150: Online | B150: Other | C150: Segment 3 | E150: 1 | F150: 1 | G150: 1 | H150: 0 | I150: 0 | J150: 2020-07-01 | K150: 7 | L150: 2020
A151: Print | B151: Other | C151: Segment 3 | E151: 1 | F151: 1 | G151: 1 | H151: 0 | I151: 0 | J151: 2020-07-01 | K151: 7 | L151: 2020
A152: In person | B152: Other | C152: Segment 3 | E152: 1 | F152: 1 | G152: 1 | H152: 0 | I152: 0 | J152: 2020-07-01 | K152: 7 | L152: 2020
A153: Merchandise | B153: Other | C153: Segment 3 | E153: 1 | F153: 1 | G153: 1 | H153: 0 | I153: 0 | J153: 2020-07-01 | K153: 7 | L153: 2020
A154: Online | B154: Other | C154: Segment 4 | E154: 1 | F154: 1 | G154: 1 | H154: 0 | I154: 0 | J154: 2020-07-01 | K154: 7 | L154: 2020
A155: Print | B155: Other | C155: Segment 4 | E155: 1 | F155: 1 | G155: 1 | H155: 0 | I155: 0 | J155: 2020-07-01 | K155: 7 | L155: 2020
A156: In person | B156: Other | C156: Segment 4 | E156: 1 | F156: 1 | G156: 1 | H156: 0 | I156: 0 | J156: 2020-07-01 | K156: 7 | L156: 2020
A157: Merchandise | B157: Other | C157: Segment 4 | E157: 1 | F157: 1 | G157: 1 | H157: 0 | I157: 0 | J157: 2020-07-01 | K157: 7 | L157: 2020
A158: Online | B158: Other | C158: Segment 5 | E158: 1 | F158: 1 | G158: 1 | H158: 0 | I158: 0 | J158: 2020-07-01 | K158: 7 | L158: 2020
A159: Print | B159: Other | C159: Segment 5 | E159: 1 | F159: 1 | G159: 1 | H159: 0 | I159: 0 | J159: 2020-07-01 | K159: 7 | L159: 2020
A160: In person | B160: Other | C160: Segment 5 | E160: 1 | F160: 1 | G160: 1 | H160: 0 | I160: 0 | J160: 2020-07-01 | K160: 7 | L160: 2020
A161: Merchandise | B161: Other | C161: Segment 5 | E161: 1 | F161: 1 | G161: 1 | H161: 0 | I161: 0 | J161: 2020-07-01 | K161: 7 | L161: 2020
A162: Online | B162: Newsletter | C162: Segment 1 | E162: 1 | F162: 10 | G162: 10 | H162: 0 | I162: 0 | J162: 2020-07-01 | K162: 7 | L162: 2020
A163: Print | B163: Newsletter | C163: Segment 1 | E163: 1 | F163: 1 | G163: 1 | H163: 0 | I163: 0 | J163: 2020-07-01 | K163: 7 | L163: 2020
A164: Online | B164: Newsletter | C164: Segment 2 | E164: 1 | F164: 5 | G164: 5 | H164: 0 | I164: 0 | J164: 2020-07-01 | K164: 7 | L164: 2020
A165: Print | B165: Newsletter | C165: Segment 2 | E165: 1 | F165: 1 | G165: 1 | H165: 0 | I165: 0 | J165: 2020-07-01 | K165: 7 | L165: 2020
A166: Online | B166: Newsletter | C166: Segment 3 | E166: 1 | F166: 5 | G166: 5 | H166: 0 | I166: 0 | J166: 2020-07-01 | K166: 7 | L166: 2020
A167: Print | B167: Newsletter | C167: Segment 3 | E167: 1 | F167: 1 | G167: 1 | H167: 0 | I167: 0 | J167: 2020-07-01 | K167: 7 | L167: 2020
A168: Online | B168: Catalog | C168: Segment 1 | E168: 1 | F168: 50 | G168: 50 | H168: 100 | I168: 100 | J168: 2020-07-01 | K168: 7 | L168: 2020
A169: Print | B169: Catalog | C169: Segment 1 | E169: 1 | F169: 25 | G169: 25 | H169: 100 | I169: 100 | J169: 2020-07-01 | K169: 7 | L169: 2020
A170: Online | B170: Catalog | C170: Segment 2 | E170: 1 | F170: 25 | G170: 25 | H170: 50 | I170: 50 | J170: 2020-07-01 | K170: 7 | L170: 2020
A171: Print | B171: Catalog | C171: Segment 2 | E171: 1 | F171: 15 | G171: 15 | H171: 50 | I171: 50 | J171: 2020-07-01 | K171: 7 | L171: 2020
A172: Online | B172: Catalog | C172: Segment 3 | E172: 1 | F172: 10 | G172: 10 | H172: 25 | I172: 25 | J172: 2020-07-01 | K172: 7 | L172: 2020
A173: Online | B173: Flyer | C173: Segment 1 | E173: 1 | F173: 50 | G173: 50 | H173: 100 | I173: 100 | J173: 2020-07-01 | K173: 7 | L173: 2020
A174: Print | B174: Flyer | C174: Segment 1 | E174: 1 | F174: 25 | G174: 25 | H174: 100 | I174: 100 | J174: 2020-07-01 | K174: 7 | L174: 2020
A175: Online | B175: Flyer | C175: Segment 2 | E175: 1 | F175: 25 | G175: 25 | H175: 50 | I175: 50 | J175: 2020-07-01 | K175: 7 | L175: 2020
A176: Print | B176: Flyer | C176: Segment 2 | E176: 1 | F176: 15 | G176: 15 | H176: 50 | I176: 50 | J176: 2020-07-01 | K176: 7 | L176: 2020
A177: Online | B177: Flyer | C177: Segment 3 | E177: 1 | F177: 10 | G177: 10 | H177: 25 | I177: 25 | J177: 2020-07-01 | K177: 7 | L177: 2020
A178: Online | B178: Merchandise | C178: Segment 3 | E178: 1 | F178: 100 | G178: 100 | H178: 250 | I178: 250 | J178: 2020-07-01 | K178: 7 | L178: 2020
A179: In person | B179: Trade fair | C179: Segment 1 | E179: 1 | F179: 150 | G179: 150 | H179: 50 | I179: 50 | J179: 2020-07-01 | K179: 7 | L179: 2020
A180: In person | B180: Trade fair | C180: Segment 2 | E180: 1 | F180: 50 | G180: 50 | H180: 25 | I180: 25 | J180: 2020-07-01 | K180: 7 | L180: 2020
A181: Online | B181: Seminar | C181: Segment 1 | E181: 1 | F181: 150 | G181: 150 | H181: 250 | I181: 250 | J181: 2020-07-01 | K181: 7 | L181: 2020
A182: In person | B182: Seminar | C182: Segment 1 | E182: 1 | F182: 150 | G182: 150 | H182: 250 | I182: 250 | J182: 2020-07-01 | K182: 7 | L182: 2020
A183: Online | B183: Seminar | C183: Segment 2 | E183: 1 | F183: 50 | G183: 50 | H183: 100 | I183: 100 | J183: 2020-07-01 | K183: 7 | L183: 2020
A184: In person | B184: Seminar | C184: Segment 2 | E184: 1 | F184: 50 | G184: 50 | H184: 100 | I184: 100 | J184: 2020-07-01 | K184: 7 | L184: 2020
A185: Online | B185: Social media | C185: Segment 1 | E185: 1 | F185: 50 | G185: 50 | H185: 5 | I185: 5 | J185: 2021-07-01 | K185: =+MONTH(J185) -> 7 | L185: =+YEAR(J185) -> 2021
A186: Online | B186: Social media | C186: Segment 2 | E186: 1 | F186: 10 | G186: 10 | H186: 10 | I186: 10 | J186: 2021-07-01 | K186: =+MONTH(J186) -> 7 | L186: =+YEAR(J186) -> 2021
A187: Online | B187: Social media | C187: Segment 3 | E187: 1 | F187: 5 | G187: 5 | H187: 0 | I187: 0 | J187: 2021-07-01 | K187: 7 | L187: 2021
A188: Online | B188: Social media | C188: Segment 4 | E188: 1 | F188: 1 | G188: 1 | H188: 0 | I188: 0 | J188: 2021-07-01 | K188: 7 | L188: 2021
A189: Online | B189: Social media | C189: Segment 5 | E189: 1 | F189: 1 | G189: 1 | H189: 0 | I189: 0 | J189: 2021-07-01 | K189: 7 | L189: 2021
A190: Online | B190: Website | C190: Segment 1 | E190: 1 | F190: 150 | G190: 150 | H190: 5,000 | I190: 5,000 | J190: 2021-07-01 | K190: 7 | L190: 2021
A191: Online | B191: Website | C191: Segment 2 | E191: 1 | F191: 50 | G191: 50 | H191: 1,000 | I191: 1,000 | J191: 2021-07-01 | K191: 7 | L191: 2021
A192: Online | B192: Website | C192: Segment 3 | E192: 1 | F192: 10 | G192: 10 | H192: 50 | I192: 50 | J192: 2021-07-01 | K192: 7 | L192: 2021
A193: Online | B193: Website | C193: Segment 4 | E193: 1 | F193: 1 | G193: 1 | H193: 5 | I193: 5 | J193: 2021-07-01 | K193: 7 | L193: 2021
A194: Online | B194: Website | C194: Segment 5 | E194: 1 | F194: 1 | G194: 1 | H194: 5 | I194: 5 | J194: 2021-07-01 | K194: 7 | L194: 2021
A195: Online | B195: Search engine | C195: Segment 1 | E195: 1 | F195: 50 | G195: 50 | H195: 1,000 | I195: 1,000 | J195: 2021-07-01 | K195: 7 | L195: 2021
A196: Online | B196: Search engine | C196: Segment 2 | E196: 1 | F196: 25 | G196: 25 | H196: 250 | I196: 250 | J196: 2021-07-01 | K196: 7 | L196: 2021
A197: Online | B197: Search engine | C197: Segment 3 | E197: 1 | F197: 5 | G197: 5 | H197: 5 | I197: 5 | J197: 2021-07-01 | K197: 7 | L197: 2021
A198: Online | B198: Article | C198: Segment 1 | E198: 1 | F198: 50 | G198: 50 | H198: 20 | I198: 20 | J198: 2021-07-01 | K198: 7 | L198: 2021
A199: Print | B199: Article | C199: Segment 1 | E199: 1 | F199: 150 | G199: 150 | H199: 10 | I199: 10 | J199: 2021-07-01 | K199: 7 | L199: 2021
A200: Online | B200: Article | C200: Segment 2 | E200: 1 | F200: 25 | G200: 25 | H200: 10 | I200: 10 | J200: 2021-07-01 | K200: 7 | L200: 2021
... 472 more rows

Sheet masterfile
A1: Channel | B1: Media Type | C1: Segment
A2: Online | B2: Social media | C2: Segment 1
A3: Print | B3: Website | C3: Segment 2
A4: In person | B4: Search engine | C4: Segment 3
A5: Merchandise | B5: Article | C5: Segment 4
B6: Other | C6: Segment 5
B7: Newsletter
B8: Catalog
B9: Flyer
B10: Merchandise
B11: Trade fair
B12: Seminar
